Department Family,Entity,Date,Expense Type,Expense Area,Supplier,Transaction Number,Amount,Description
Ministry of Justice,MoJ HQ,06-May-14,912200-Other Movements in Year,KY300-Legal Services Strategy,LEGAL AID AGENCY (LAA),4556,"57,121,000.00",MoJ Corporate - Legal Aid Funding
Ministry of Justice,MoJ HQ,12-May-14,912200-Other Movements in Year,KY300-Legal Services Strategy,LEGAL AID AGENCY (LAA),4573,"21,390,000.00",MoJ Corporate - Legal Aid Funding
Ministry of Justice,MoJ HQ,19-May-14,912200-Other Movements in Year,KY300-Legal Services Strategy,LEGAL AID AGENCY (LAA),4600,"25,752,000.00",MoJ Corporate - Legal Aid Funding
Ministry of Justice,MoJ HQ,27-May-14,912200-Other Movements in Year,KY300-Legal Services Strategy,LEGAL AID AGENCY (LAA),4617,"26,217,000.00",MoJ Corporate - Legal Aid Funding
Ministry of Justice,MoJ HQ,01-May-14,245000-Grants in Aid to NDPBs,KY340-Access to Justice Delivery,CCRC (CRIMINAL CASES REVIEW COMMISSION),4534,"560,000.00",Monthly Grant in Aid payment to CCRC (May) 
Ministry of Justice,MoJ HQ,07-May-14,245000-Grants in Aid to NDPBs,KY340-Access to Justice Delivery,CICA (CRIMINAL INJURIES COMPENSATION AUTHORITY),4558,"45,000,000.00",Grant in Aid to Criminal Injuries Compensation Authority
Ministry of Justice,MoJ HQ,29-May-14,245000-Grants in Aid to NDPBs,KY340-Access to Justice Delivery,CICA (CRIMINAL INJURIES COMPENSATION AUTHORITY),4624,"18,500,000.00",Grant in Aid to Criminal Injuries Compensation Authority
Ministry of Justice,MoJ HQ,08-May-14,245000-Grants in Aid to NDPBs,KY340-Access to Justice Delivery,THE PAROLE BOARD#KY14820018,4565,"1,000,000.00",Grant in Aid to NDPBs
Ministry of Justice,MoJ HQ,01-May-14,265000-IT & Telecommunications,LZ600-Transforming Justice,ATOS IT SERVICES UK LTD,1130738,116.08,IT peripherals/individual ordered software and equipment
Ministry of Justice,MoJ HQ,01-May-14,265000-IT & Telecommunications,LZ600-Transforming Justice,ATOS IT SERVICES UK LTD,1130738,11.62,IT peripherals/individual ordered software and equipment
Ministry of Justice,MoJ HQ,01-May-14,265000-IT & Telecommunications,LZ600-Transforming Justice,ATOS IT SERVICES UK LTD,1130738,25.78,IT peripherals/individual ordered software and equipment
Ministry of Justice,MoJ HQ,01-May-14,265000-IT & Telecommunications,LZ600-Transforming Justice,ATOS IT SERVICES UK LTD,1130738,34.86,IT peripherals/individual ordered software and equipment
Ministry of Justice,MoJ HQ,01-May-14,265000-IT & Telecommunications,LZ600-Transforming Justice,ATOS IT SERVICES UK LTD,1130738,25.78,IT peripherals/individual ordered software and equipment
Ministry of Justice,MoJ HQ,01-May-14,265000-IT & Telecommunications,LZ600-Transforming Justice,ATOS IT SERVICES UK LTD,1130738,58.47,Replace faulty blackberry device
Ministry of Justice,MoJ HQ,01-May-14,265000-IT & Telecommunications,LZ600-Transforming Justice,ATOS IT SERVICES UK LTD,1130738,43.43,"Provision of IT equipment, applications and services to the Rehabilitation Programme team"
Ministry of Justice,MoJ HQ,01-May-14,265000-IT & Telecommunications,LZ600-Transforming Justice,ATOS IT SERVICES UK LTD,1130738,25.78,"Provision of IT equipment, applications and services to the Rehabilitation Programme team"
Ministry of Justice,MoJ HQ,01-May-14,265000-IT & Telecommunications,LZ600-Transforming Justice,ATOS IT SERVICES UK LTD,1130738,25.78,"Provision of IT equipment, applications and services to the Rehabilitation Programme team"
Ministry of Justice,MoJ HQ,01-May-14,265000-IT & Telecommunications,LZ600-Transforming Justice,ATOS IT SERVICES UK LTD,1130738,25.78,"Provision of IT equipment, applications and services to the Rehabilitation Programme team"
Ministry of Justice,MoJ HQ,01-May-14,265000-IT & Telecommunications,LZ600-Transforming Justice,ATOS IT SERVICES UK LTD,1130738,25.78,"Provision of IT equipment, applications and services to the Rehabilitation Programme team"
Ministry of Justice,MoJ HQ,01-May-14,265000-IT & Telecommunications,LZ600-Transforming Justice,ATOS IT SERVICES UK LTD,1130738,25.78,"Provision of IT equipment, applications and services to the Rehabilitation Programme team"
Ministry of Justice,MoJ HQ,01-May-14,265000-IT & Telecommunications,LZ600-Transforming Justice,ATOS IT SERVICES UK LTD,1130738,25.78,"Provision of IT equipment, applications and services to the Rehabilitation Programme team"
Ministry of Justice,MoJ HQ,01-May-14,265000-IT & Telecommunications,LZ600-Transforming Justice,ATOS IT SERVICES UK LTD,1130738,25.78,"Provision of IT equipment, applications and services to the Rehabilitation Programme team"
Ministry of Justice,MoJ HQ,01-May-14,265000-IT & Telecommunications,LZ600-Transforming Justice,ATOS IT SERVICES UK LTD,1130738,25.78,"Provision of IT equipment, applications and services to the Rehabilitation Programme team"
Ministry of Justice,MoJ HQ,01-May-14,265000-IT & Telecommunications,LZ600-Transforming Justice,ATOS IT SERVICES UK LTD,1130738,25.78,"Provision of IT equipment, applications and services to the Rehabilitation Programme team"
Ministry of Justice,MoJ HQ,01-May-14,265000-IT & Telecommunications,LZ600-Transforming Justice,ATOS IT SERVICES UK LTD,1130738,78.26,"Provision of IT equipment, applications and services to the Rehabilitation Programme team"
Ministry of Justice,MoJ HQ,01-May-14,265000-IT & Telecommunications,LZ600-Transforming Justice,ATOS IT SERVICES UK LTD,1130738,242.09,"Provision of IT equipment, applications and services to the Rehabilitation Programme team"
Ministry of Justice,MoJ HQ,01-May-14,265000-IT & Telecommunications,LZ600-Transforming Justice,ATOS IT SERVICES UK LTD,1130738,11.62,"Provision of IT equipment, applications and services to the Rehabilitation Programme team"
Ministry of Justice,MoJ HQ,01-May-14,265000-IT & Telecommunications,LZ600-Transforming Justice,ATOS IT SERVICES UK LTD,1130738,78.26,"Provision of IT equipment, applications and services to the Rehabilitation Programme team"
Ministry of Justice,MoJ HQ,01-May-14,265000-IT & Telecommunications,LZ600-Transforming Justice,ATOS IT SERVICES UK LTD,1130738,11.62,"Provision of IT equipment, applications and services to the Rehabilitation Programme team"
Ministry of Justice,MoJ HQ,01-May-14,265000-IT & Telecommunications,LZ600-Transforming Justice,ATOS IT SERVICES UK LTD,1130738,328,"Provision of IT equipment, applications and services to the Rehabilitation Programme team"
Ministry of Justice,MoJ HQ,01-May-14,265000-IT & Telecommunications,LZ600-Transforming Justice,ATOS IT SERVICES UK LTD,1130738,264,"Provision of IT equipment, applications and services to the Rehabilitation Programme team"
Ministry of Justice,MoJ HQ,01-May-14,265000-IT & Telecommunications,LZ600-Transforming Justice,ATOS IT SERVICES UK LTD,1130738,164,"Provision of IT equipment, applications and services to the Rehabilitation Programme team"
Ministry of Justice,MoJ HQ,01-May-14,265000-IT & Telecommunications,LZ600-Transforming Justice,ATOS IT SERVICES UK LTD,1130738,138,"Provision of IT equipment, applications and services to the Rehabilitation Programme team"
Ministry of Justice,MoJ HQ,01-May-14,265000-IT & Telecommunications,LZ600-Transforming Justice,ATOS IT SERVICES UK LTD,1130738,46,"Provision of IT equipment, applications and services to the Rehabilitation Programme team"
Ministry of Justice,MoJ HQ,01-May-14,265000-IT & Telecommunications,LZ600-Transforming Justice,ATOS IT SERVICES UK LTD,1130738,25.78,"Provision of IT equipment, applications and services to the Rehabilitation Programme team"
Ministry of Justice,MoJ HQ,01-May-14,265000-IT & Telecommunications,LZ600-Transforming Justice,ATOS IT SERVICES UK LTD,1130738,138,"Provision of IT equipment, applications and services to the Rehabilitation Programme team"
Ministry of Justice,MoJ HQ,01-May-14,265000-IT & Telecommunications,LZ600-Transforming Justice,ATOS IT SERVICES UK LTD,1130738,92.96,"Provision of IT equipment, applications and services to the Rehabilitation Programme team"
Ministry of Justice,MoJ HQ,01-May-14,265000-IT & Telecommunications,LZ600-Transforming Justice,ATOS IT SERVICES UK LTD,1130738,69.72,"Provision of IT equipment, applications and services to the Rehabilitation Programme team"
Ministry of Justice,MoJ HQ,01-May-14,265000-IT & Telecommunications,LZ600-Transforming Justice,ATOS IT SERVICES UK LTD,1130738,11.62,"Provision of IT equipment, applications and services to the Rehabilitation Programme team"
Ministry of Justice,MoJ HQ,01-May-14,265000-IT & Telecommunications,LZ600-Transforming Justice,ATOS IT SERVICES UK LTD,1130738,11.62,"Provision of IT equipment, applications and services to the Rehabilitation Programme team"
Ministry of Justice,MoJ HQ,01-May-14,265000-IT & Telecommunications,LZ600-Transforming Justice,ATOS IT SERVICES UK LTD,1130738,11.17,"Provision of IT equipment, applications and services to the Rehabilitation Programme team"
Ministry of Justice,MoJ HQ,01-May-14,265000-IT & Telecommunications,LZ600-Transforming Justice,ATOS IT SERVICES UK LTD,1130738,11.62,"Provision of IT equipment, applications and services to the Rehabilitation Programme team"
Ministry of Justice,MoJ HQ,01-May-14,265000-IT & Telecommunications,LZ600-Transforming Justice,ATOS IT SERVICES UK LTD,1130738,11.62,"Provision of IT equipment, applications and services to the Rehabilitation Programme team"
Ministry of Justice,MoJ HQ,01-May-14,265000-IT & Telecommunications,LZ600-Transforming Justice,ATOS IT SERVICES UK LTD,1130738,11.62,"Provision of IT equipment, applications and services to the Rehabilitation Programme team"
Ministry of Justice,MoJ HQ,01-May-14,265000-IT & Telecommunications,LZ600-Transforming Justice,ATOS IT SERVICES UK LTD,1130738,11.62,"Provision of IT equipment, applications and services to the Rehabilitation Programme team"
Ministry of Justice,MoJ HQ,01-May-14,265000-IT & Telecommunications,LZ600-Transforming Justice,ATOS IT SERVICES UK LTD,1130738,265.63,"Provision of IT equipment, applications and services to the Rehabilitation Programme team"
Ministry of Justice,MoJ HQ,01-May-14,265000-IT & Telecommunications,LZ600-Transforming Justice,ATOS IT SERVICES UK LTD,1130738,11.62,"Provision of IT equipment, applications and services to the Rehabilitation Programme team"
Ministry of Justice,MoJ HQ,01-May-14,265000-IT & Telecommunications,LZ600-Transforming Justice,ATOS IT SERVICES UK LTD,1130738,11.62,"Provision of IT equipment, applications and services to the Rehabilitation Programme team"
Ministry of Justice,MoJ HQ,01-May-14,265000-IT & Telecommunications,LZ600-Transforming Justice,ATOS IT SERVICES UK LTD,1130738,11.62,"Provision of IT equipment, applications and services to the Rehabilitation Programme team"
Ministry of Justice,MoJ HQ,01-May-14,265000-IT & Telecommunications,LZ600-Transforming Justice,ATOS IT SERVICES UK LTD,1130738,11.62,"Provision of IT equipment, applications and services to the Rehabilitation Programme team"
Ministry of Justice,MoJ HQ,01-May-14,265000-IT & Telecommunications,LZ600-Transforming Justice,ATOS IT SERVICES UK LTD,1130738,34.86,"Provision of IT equipment, applications and services to the Rehabilitation Programme team"
Ministry of Justice,MoJ HQ,01-May-14,265000-IT & Telecommunications,LZ600-Transforming Justice,ATOS IT SERVICES UK LTD,1130738,34.86,"Provision of IT equipment, applications and services to the Rehabilitation Programme team"
Ministry of Justice,MoJ HQ,01-May-14,265000-IT & Telecommunications,LZ600-Transforming Justice,ATOS IT SERVICES UK LTD,1130738,46.48,"Provision of IT equipment, applications and services to the Rehabilitation Programme team"
Ministry of Justice,MoJ HQ,01-May-14,265000-IT & Telecommunications,LZ600-Transforming Justice,ATOS IT SERVICES UK LTD,1130738,58.1,"Provision of IT equipment, applications and services to the Rehabilitation Programme team"
Ministry of Justice,MoJ HQ,29-May-14,266000-Judicial Costs,LZ600-Transforming Justice,BANKS ROBERT MR,1133151,"50,654.00",Legal publications for the judiciary and courts
Ministry of Justice,MoJ HQ,16-May-14,223000-Other Expenditure,LZ600-Transforming Justice,CABINET OFFICE,4593,"45,000.00",Legal publications for the judiciary and courts
Ministry of Justice,MoJ HQ,19-May-14,265000-IT & Telecommunications,LZ600-Transforming Justice,CMC PARTNERSHIP (UK) LTD,1132234,"21,675.00",Specification 3579-1 CMC - PMO Managed Service.  Rehabilition Programme - CMC - PMO Managed Service.
Ministry of Justice,MoJ HQ,19-May-14,265000-IT & Telecommunications,LZ600-Transforming Justice,CMC PARTNERSHIP (UK) LTD,1132234,"4,335.00",VAT - Specification 3579-1 CMC - PMO Managed Service.  Rehabilition Programme - CMC - PMO Managed Service.
Ministry of Justice,MoJ HQ,19-May-14,265000-IT & Telecommunications,LZ600-Transforming Justice,CMC PARTNERSHIP (UK) LTD,1132234,"21,250.00",Specification 3579-1 CMC - PMO Managed Service.  Rehabilition Programme - CMC - PMO Managed Service.
Ministry of Justice,MoJ HQ,19-May-14,265000-IT & Telecommunications,LZ600-Transforming Justice,CMC PARTNERSHIP (UK) LTD,1132234,"4,250.00",VAT - Specification 3579-1 CMC - PMO Managed Service.  Rehabilition Programme - CMC - PMO Managed Service.
Ministry of Justice,MoJ HQ,19-May-14,265000-IT & Telecommunications,LZ600-Transforming Justice,CMC PARTNERSHIP (UK) LTD,1132234,"21,250.00",Specification 3579-1 CMC - PMO Managed Service.  Rehabilition Programme - CMC - PMO Managed Service.
Ministry of Justice,MoJ HQ,19-May-14,265000-IT & Telecommunications,LZ600-Transforming Justice,CMC PARTNERSHIP (UK) LTD,1132234,"4,250.00",VAT - Specification 3579-1 CMC - PMO Managed Service.  Rehabilition Programme - CMC - PMO Managed Service.
Ministry of Justice,MoJ HQ,19-May-14,265000-IT & Telecommunications,LZ600-Transforming Justice,CMC PARTNERSHIP (UK) LTD,1132234,"23,750.00",Specification 3579-1 CMC - PMO Managed Service.  Rehabilition Programme - CMC - PMO Managed Service.
Ministry of Justice,MoJ HQ,19-May-14,265000-IT & Telecommunications,LZ600-Transforming Justice,CMC PARTNERSHIP (UK) LTD,1132234,"4,750.00",VAT - Specification 3579-1 CMC - PMO Managed Service.  Rehabilition Programme - CMC - PMO Managed Service.
Ministry of Justice,MoJ HQ,07-May-14,265000-IT & Telecommunications,LZ600-Transforming Justice,HOME OFFICE IT,4560,"52,499.89","HOIT Testing Services Memorandum of Understanding: Transforming Rehabilitation Programme - Transition Phase 1						"
Ministry of Justice,MoJ HQ,07-May-14,265000-IT & Telecommunications,LZ600-Transforming Justice,HOME OFFICE IT,4561,"67,145.37","HOIT Testing Services Memorandum of Understanding: Transforming Rehabilitation Programme - Transition Phase 1						"
Ministry of Justice,MoJ HQ,27-May-14,265000-IT & Telecommunications,LZ600-Transforming Justice,HP ENTERPRISE SERVICES UK LTD,1132881,"52,101.23",RFS 9095-03 TR Prison-NOMIS for TS1 Offer v1.0
Ministry of Justice,MoJ HQ,27-May-14,265000-IT & Telecommunications,LZ600-Transforming Justice,HP ENTERPRISE SERVICES UK LTD,1132881,"181,169.53",RFS 9095-03 TR Prison-NOMIS for TS1 Offer v1.0
Ministry of Justice,MoJ HQ,29-May-14,512000-Intangible GBV - Additions,LZ600-Transforming Justice,I2N LTD,1133267,"193,000.00","Proposal for IAPS Migration and Core System Changes - Rehabilitation Programme - Proposal for IAPS Migration and Core System Changes (Application)						 							"
Ministry of Justice,MoJ HQ,29-May-14,512000-Intangible GBV - Additions,LZ600-Transforming Justice,I2N LTD,1133267,"38,600.00","VAT - Proposal for IAPS Migration and Core System Changes - Rehabilitation Programme - Proposal for IAPS Migration and Core System Changes (Application)						 							"
Ministry of Justice,MoJ HQ,01-May-14,264000-Consultancy,LZ600-Transforming Justice,PA CONSULTING GROUP,1130949,"511,271.64",To Provide Rehabilitation Programme with HR People Transition Support
Ministry of Justice,MoJ HQ,06-May-14,264000-Consultancy,LZ600-Transforming Justice,PA CONSULTING GROUP,1131185,"120,694.25",Transitions Managers to provide Rehabilitation Programme with support to deliver the transition from 35 Probation Trusts to a single public sector probation service and 21 Community Rehabilitation Companies by October 2014.
Ministry of Justice,MoJ HQ,06-May-14,264000-Consultancy,LZ600-Transforming Justice,PA CONSULTING GROUP,1131185,"31,050.00",To back fill role in Change and ICT Directorate in NOMS as existing staff left to join Rehabilitation Programme.
Ministry of Justice,MoJ HQ,29-May-14,264000-Consultancy,LZ600-Transforming Justice,PA CONSULTING GROUP,1133324,"234,414.84",Transitions Managers to provide Rehabilitation Programme with support to deliver the transition from 35 Probation Trusts to a single public sector probation service and 21 Community Rehabilitation Companies by October 2014.
Ministry of Justice,MoJ HQ,29-May-14,264000-Consultancy,LZ600-Transforming Justice,PA CONSULTING GROUP,1133324,"66,030.80",Transitions Service Managers to provide Rehabilitation Programme with support to deliver the transition from 35 Probation Trusts to a single public sector probation service and 21 Community Rehabilitation Companies.
Ministry of Justice,MoJ HQ,01-May-14,265000-IT & Telecommunications,LZ600-Transforming Justice,STERIA LTD,1130995,"164,342.50","RFS122131 Milestones 1 to 4 328,685 fixed price: OMNI access to NOMS Shared Services- Rehabilitation Programme- Ongoing charge 							"
Ministry of Justice,MoJ HQ,29-May-14,265000-IT & Telecommunications,LZ600-Transforming Justice,STERIA LTD,1133365,"164,342.50","RFS122131 Milestones 1 to 4 328,685 fixed price: OMNI access to NOMS Shared Services- Rehabilitation Programme- Ongoing charge 							"
Ministry of Justice,MoJ HQ,01-May-14,264000-Consultancy,LZ600-Transforming Justice,TAMESIDE METROPOLITAN BOROUGH,1131003,"319,789.00",Transfer of probation liabilities and assets from 35 Local Government Pension Scheme(LGPS) Admin Authorities to the Greater Manchester Pension Fund.
Ministry of Justice,MoJ HQ,01-May-14,264000-Consultancy,LZ600-Transforming Justice,TAMESIDE METROPOLITAN BOROUGH,1131003,"63,957.80",VAT - Transfer of probation liabilities and assets from 35 Local Government Pension Scheme(LGPS) Admin Authorities to the Greater Manchester Pension Fund.
Ministry of Justice,MoJ HQ,01-May-14,264000-Consultancy,LZ600-Transforming Justice,TAMESIDE METROPOLITAN BOROUGH,1131003,"580,490.00",Transfer of probation liabilities and assets from 35 Local Government Pension Scheme(LGPS) Admin Authorities to the Greater Manchester Pension Fund.
Ministry of Justice,MoJ HQ,01-May-14,264000-Consultancy,LZ600-Transforming Justice,TAMESIDE METROPOLITAN BOROUGH,1131003,"116,098.00",VAT - Transfer of probation liabilities and assets from 35 Local Government Pension Scheme(LGPS) Admin Authorities to the Greater Manchester Pension Fund.
Ministry of Justice,MoJ HQ,06-May-14,223000-Other Expenditure,LZ600-Transforming Justice,TNT UK LTD,1131252,"68,329.64",Monthly 'storage' and 'activity' costs for paper records stored by TNT on MoJ's behalf at its secure repositories.
Ministry of Justice,MoJ HQ,01-May-14,265000-IT & Telecommunications,MA100-Digital Services Division,ATOS IT SERVICES UK LTD,1130738,"13,898.01",Visual mobile electrical equipment
Ministry of Justice,MoJ HQ,01-May-14,265000-IT & Telecommunications,MF600-Directorate of Judicial Offices,ATOS IT SERVICES UK LTD,1130738,60.34,IT peripherals/individual ordered software and equipment
Ministry of Justice,MoJ HQ,08-May-14,266000-Judicial Costs,MF600-Directorate of Judicial Offices,CALDER CONFERENCES LTD,1131327,996.08,The exempt cost (this cost will change when the invoice is issued) to hire Highgate House to hold a Family Private Induction from 24 March 2014 - Calder ref: CAL14775/1
Ministry of Justice,MoJ HQ,08-May-14,266000-Judicial Costs,MF600-Directorate of Judicial Offices,CALDER CONFERENCES LTD,1131327,"39,183.19",The cost to hire Highgate House to hold a Family Private Induction from 24 March 2014 - Calder ref: CAL14775/1
Ministry of Justice,MoJ HQ,06-May-14,266000-Judicial Costs,MF600-Directorate of Judicial Offices,CALDER CONFERENCES LTD,1131075,"34,301.35","Conference venue, accommodation, catering and other costs relating to Judicial Training Conferences booked via the MOJ booking agent Calder Conferences"
Ministry of Justice,MoJ HQ,06-May-14,266000-Judicial Costs,MF600-Directorate of Judicial Offices,CALDER CONFERENCES LTD,1131075,"2,281.30",VAT EXEMPT - Items that do not incur VAT. The VAT-exempt items associated to the cost of Judicial Training Conferences booked via the MOJ booking agent Calder Conferences. 3 day  event from 25th - 27th March
Ministry of Justice,MoJ HQ,08-May-14,266000-Judicial Costs,MF600-Directorate of Judicial Offices,CALDER CONFERENCES LTD,1131327,"30,566.30","The cost to hire Burleigh Court Loughborough Conference venue to hold a 3 day Induction (Judicial Training) event from 8th to 10th April 2014 covering accommodation, catering and other costs relating to Judicial Training Conferences booked via the MOJ booking agent Calder Conferences"
Ministry of Justice,MoJ HQ,29-May-14,266000-Judicial Costs,MF600-Directorate of Judicial Offices,CALDER CONFERENCES LTD,1133169,"32,601.65","The cost to hire Burleigh Court Loughborough Conference venue to hold a 3 day Induction (Judicial Training) event from 6th to 8th May 2014 covering accommodation, catering and other costs relating to Judicial Training Conferences booked via the MOJ booking agent Calder Conferences"
Ministry of Justice,MoJ HQ,15-May-14,266000-Judicial Costs,MF600-Directorate of Judicial Offices,CALDER CONFERENCES LTD,1131867,"27,215.15","Conference venue, accommodation, catering and other costs relating to Judicial Training Conferences booked via the MOJ booking agent Calder Conferences"
Ministry of Justice,MoJ HQ,15-May-14,266000-Judicial Costs,MF600-Directorate of Judicial Offices,CALDER CONFERENCES LTD,1131867,840,VAT EXEMPT - Items that do not incur VAT. The VAT-exempt items associated to the cost of a 3 day Judicial Training Conferences booked via the MOJ booking agent Calder Conferences.
Ministry of Justice,MoJ HQ,19-May-14,266000-Judicial Costs,MF600-Directorate of Judicial Offices,CALDER CONFERENCES LTD,1132217,"19,990.06",Hire of Scarman Training and Conference Centre for Crown Court Sentencing Seminar 1 via Calders Ref.: CAL14797/1 on GPS33261/1 on 9-10 April 2014
Ministry of Justice,MoJ HQ,19-May-14,266000-Judicial Costs,MF600-Directorate of Judicial Offices,CALDER CONFERENCES LTD,1132217,"3,420.97",The exempt cost (this cost will change when the invoice is issued) to Hire of Scarman Training and Conference Centre for Crown Court TRIAL Seminar 1 via Calders Ref.: GPS33261/1 on 9-10 APRIL 2014
Ministry of Justice,MoJ HQ,27-May-14,265000-IT & Telecommunications,MF600-Directorate of Judicial Offices,THE DEXTROUS WEB,1133070,"26,400.00",Design and build of two websites on a new platform in addition to creation of a secure production and live infrastructure/hosting environment
Ministry of Justice,MoJ HQ,01-May-14,265000-IT & Telecommunications,NQ901-MOJ Procurement Feeder,ATOS IT SERVICES UK LTD,1130738,25.78,IT peripherals/individual ordered software and equipment
Ministry of Justice,MoJ HQ,01-May-14,265000-IT & Telecommunications,NQ901-MOJ Procurement Feeder,ATOS IT SERVICES UK LTD,1130738,417.3,IT peripherals/individual ordered software and equipment
Ministry of Justice,MoJ HQ,01-May-14,265000-IT & Telecommunications,NQ901-MOJ Procurement Feeder,ATOS IT SERVICES UK LTD,1130738,25.78,IT peripherals/individual ordered software and equipment
Ministry of Justice,MoJ HQ,01-May-14,265000-IT & Telecommunications,NQ901-MOJ Procurement Feeder,ATOS IT SERVICES UK LTD,1130738,25.78,IT peripherals/individual ordered software and equipment
Ministry of Justice,MoJ HQ,01-May-14,265000-IT & Telecommunications,NQ901-MOJ Procurement Feeder,ATOS IT SERVICES UK LTD,1130738,25.78,IT peripherals/individual ordered software and equipment
Ministry of Justice,MoJ HQ,01-May-14,265000-IT & Telecommunications,NQ901-MOJ Procurement Feeder,ATOS IT SERVICES UK LTD,1130738,25.78,IT peripherals/individual ordered software and equipment
Ministry of Justice,MoJ HQ,01-May-14,265000-IT & Telecommunications,NQ901-MOJ Procurement Feeder,ATOS IT SERVICES UK LTD,1130738,92,IT peripherals/individual ordered software and equipment
Ministry of Justice,MoJ HQ,01-May-14,265000-IT & Telecommunications,NQ901-MOJ Procurement Feeder,ATOS IT SERVICES UK LTD,1130738,25.78,IT peripherals/individual ordered software and equipment
Ministry of Justice,MoJ HQ,01-May-14,265000-IT & Telecommunications,NQ901-MOJ Procurement Feeder,ATOS IT SERVICES UK LTD,1130738,46,IT peripherals/individual ordered software and equipment
Ministry of Justice,MoJ HQ,01-May-14,265000-IT & Telecommunications,NQ901-MOJ Procurement Feeder,ATOS IT SERVICES UK LTD,1130738,11.62,IT peripherals/individual ordered software and equipment
Ministry of Justice,MoJ HQ,01-May-14,265000-IT & Telecommunications,NQ901-MOJ Procurement Feeder,ATOS IT SERVICES UK LTD,1130738,78.26,IT peripherals/individual ordered software and equipment
Ministry of Justice,MoJ HQ,01-May-14,265000-IT & Telecommunications,NX900-MOJ Shared Services,ATOS IT SERVICES UK LTD,1130738,46,IT peripherals/individual ordered software and equipment
Ministry of Justice,MoJ HQ,15-May-14,264000-Consultancy,NX900-MOJ Shared Services,BOND DICKINSON LLP,1131842,"23,323.13",Consultancy advice work from Bond Dickinson on the Evolve Programme
Ministry of Justice,MoJ HQ,15-May-14,264000-Consultancy,NX900-MOJ Shared Services,BOND DICKINSON LLP,1131842,"4,664.63",Consultancy advice work from Bond Dickinson on the Evolve Programme
Ministry of Justice,MoJ HQ,22-May-14,512000-Intangible GBV - Additions,NX900-MOJ Shared Services,HP ENTERPRISE SERVICES UK LTD,1132553,"697,874.38",Merge of the Aramis and Phoenix systems for April 2014
Ministry of Justice,MoJ HQ,01-May-14,264000-Consultancy,NX900-MOJ Shared Services,KPMG,1130874,"100,399.50",Consultancy advice work from KPMG on the Evolve programme
Ministry of Justice,MoJ HQ,15-May-14,262000-SCA Costs,NX900-MOJ Shared Services,LIBERATA UK LTD,1132019,"214,391.93",Archiving Services
Ministry of Justice,MoJ HQ,15-May-14,262000-SCA Costs,NX900-MOJ Shared Services,LIBERATA UK LTD,1132018,"1,262,242.63",Monthly Contract Charges
Ministry of Justice,MoJ HQ,27-May-14,512000-Intangible GBV - Additions,NX900-MOJ Shared Services,LIBERATA UK LTD,1132924,"56,201.43",Merge development activity contingengy element
Ministry of Justice,MoJ HQ,15-May-14,262000-SCA Costs,NX900-MOJ Shared Services,LIBERATA UK LTD,1132018,"253,847.75",Monthly charge for payroll services
Ministry of Justice,MoJ HQ,12-May-14,223000-Other Expenditure,NZ401-Finance Group Feeder,ALLEN LANE CONSULTANCY LTD,1131548,"1,181,200.00",Managed Accounting Service
Ministry of Justice,MoJ HQ,12-May-14,223000-Other Expenditure,NZ401-Finance Group Feeder,ALLEN LANE CONSULTANCY LTD,1131548,"236,240.00",Managed Accounting Service
Ministry of Justice,MoJ HQ,01-May-14,265000-IT & Telecommunications,NZ401-Finance Group Feeder,ATOS IT SERVICES UK LTD,1130738,164,IT peripherals/individual ordered software and equipment
Ministry of Justice,MoJ HQ,01-May-14,265000-IT & Telecommunications,NZ401-Finance Group Feeder,ATOS IT SERVICES UK LTD,1130738,46,IT peripherals/individual ordered software and equipment
Ministry of Justice,MoJ HQ,01-May-14,265000-IT & Telecommunications,NZ401-Finance Group Feeder,ATOS IT SERVICES UK LTD,1130738,46,IT peripherals/individual ordered software and equipment
Ministry of Justice,MoJ HQ,01-May-14,265000-IT & Telecommunications,NZ401-Finance Group Feeder,ATOS IT SERVICES UK LTD,1130738,25.78,IT peripherals/individual ordered software and equipment
Ministry of Justice,MoJ HQ,01-May-14,265000-IT & Telecommunications,NZ401-Finance Group Feeder,ATOS IT SERVICES UK LTD,1130738,77.34,IT peripherals/individual ordered software and equipment
Ministry of Justice,MoJ HQ,01-May-14,265000-IT & Telecommunications,NZ401-Finance Group Feeder,ATOS IT SERVICES UK LTD,1130738,46,IT peripherals/individual ordered software and equipment
Ministry of Justice,MoJ HQ,01-May-14,265000-IT & Telecommunications,NZ401-Finance Group Feeder,ATOS IT SERVICES UK LTD,1130738,11.62,IT peripherals/individual ordered software and equipment
Ministry of Justice,MoJ HQ,01-May-14,265000-IT & Telecommunications,NZ401-Finance Group Feeder,ATOS IT SERVICES UK LTD,1130738,11.62,IT peripherals/individual ordered software and equipment
Ministry of Justice,MoJ HQ,01-May-14,265000-IT & Telecommunications,NZ401-Finance Group Feeder,ATOS IT SERVICES UK LTD,1130738,25.23,IT peripherals/individual ordered software and equipment
Ministry of Justice,MoJ HQ,01-May-14,265000-IT & Telecommunications,NZ401-Finance Group Feeder,ATOS IT SERVICES UK LTD,1130738,78.26,IT peripherals/individual ordered software and equipment
Ministry of Justice,MoJ HQ,01-May-14,265000-IT & Telecommunications,NZ401-Finance Group Feeder,ATOS IT SERVICES UK LTD,1130738,82.78,IT peripherals/individual ordered software and equipment
Ministry of Justice,MoJ HQ,01-May-14,265000-IT & Telecommunications,NZ401-Finance Group Feeder,ATOS IT SERVICES UK LTD,1130738,25.78,IT peripherals/individual ordered software and equipment
Ministry of Justice,MoJ HQ,27-May-14,222003-CIS Labour TFM Estates,NZ406-Strategic Estates Feeder,AMEY COMMUNITY LTD,1132745,316.24,Fixed Services - Catering; Vending
Ministry of Justice,MoJ HQ,27-May-14,222003-CIS Labour TFM Estates,NZ406-Strategic Estates Feeder,AMEY COMMUNITY LTD,1132745,"64,258.12",Fixed Services - Cleaning
Ministry of Justice,MoJ HQ,27-May-14,222003-CIS Labour TFM Estates,NZ406-Strategic Estates Feeder,AMEY COMMUNITY LTD,1132745,72.73,Variable Services - Cleaning
Ministry of Justice,MoJ HQ,27-May-14,222003-CIS Labour TFM Estates,NZ406-Strategic Estates Feeder,AMEY COMMUNITY LTD,1132745,"5,248.30",Fixed Services - Waste Disposal
Ministry of Justice,MoJ HQ,27-May-14,222003-CIS Labour TFM Estates,NZ406-Strategic Estates Feeder,AMEY COMMUNITY LTD,1132745,"32,430.65",Fixed Services - Management
Ministry of Justice,MoJ HQ,27-May-14,222003-CIS Labour TFM Estates,NZ406-Strategic Estates Feeder,AMEY COMMUNITY LTD,1132745,"7,465.17",Fixed Services - Management
Ministry of Justice,MoJ HQ,27-May-14,222003-CIS Labour TFM Estates,NZ406-Strategic Estates Feeder,AMEY COMMUNITY LTD,1132745,"2,607.06",Variable Services - Management
Ministry of Justice,MoJ HQ,27-May-14,222003-CIS Labour TFM Estates,NZ406-Strategic Estates Feeder,AMEY COMMUNITY LTD,1132745,"5,872.07",Variable Services - Management
Ministry of Justice,MoJ HQ,27-May-14,222003-CIS Labour TFM Estates,NZ406-Strategic Estates Feeder,AMEY COMMUNITY LTD,1132745,"47,612.04",Fixed Services - Repair & Maintenance
Ministry of Justice,MoJ HQ,27-May-14,222003-CIS Labour TFM Estates,NZ406-Strategic Estates Feeder,AMEY COMMUNITY LTD,1132745,"12,866.99",Fixed Services - Internal Repair & Maintenance
Ministry of Justice,MoJ HQ,27-May-14,222003-CIS Labour TFM Estates,NZ406-Strategic Estates Feeder,AMEY COMMUNITY LTD,1132745,923.08,Variable Services - M&E Repair & Maintenance
Ministry of Justice,MoJ HQ,27-May-14,222003-CIS Labour TFM Estates,NZ406-Strategic Estates Feeder,AMEY COMMUNITY LTD,1132745,"11,298.93",Hard Variable Services - Internal Repair & Maintenance
Ministry of Justice,MoJ HQ,27-May-14,222003-CIS Labour TFM Estates,NZ406-Strategic Estates Feeder,AMEY COMMUNITY LTD,1132745,"55,738.56",Variable Services - M&E Repair & Maintenance
Ministry of Justice,MoJ HQ,27-May-14,222003-CIS Labour TFM Estates,NZ406-Strategic Estates Feeder,AMEY COMMUNITY LTD,1132745,208.67,Fixed Services - Grounds Maintenance
Ministry of Justice,MoJ HQ,27-May-14,222003-CIS Labour TFM Estates,NZ406-Strategic Estates Feeder,AMEY COMMUNITY LTD,1132745,385.88,Fixed Services - Pest & Vermin Control - Building Operation
Ministry of Justice,MoJ HQ,01-May-14,265000-IT & Telecommunications,NZ406-Strategic Estates Feeder,ATOS IT SERVICES UK LTD,1130738,113.16,IT peripherals/individual ordered software and equipment
Ministry of Justice,MoJ HQ,01-May-14,265000-IT & Telecommunications,NZ406-Strategic Estates Feeder,ATOS IT SERVICES UK LTD,1130738,113.16,IT peripherals/individual ordered software and equipment
Ministry of Justice,MoJ HQ,01-May-14,265000-IT & Telecommunications,NZ406-Strategic Estates Feeder,ATOS IT SERVICES UK LTD,1130738,113.16,IT peripherals/individual ordered software and equipment
Ministry of Justice,MoJ HQ,01-May-14,265000-IT & Telecommunications,NZ406-Strategic Estates Feeder,ATOS IT SERVICES UK LTD,1130738,113.16,IT peripherals/individual ordered software and equipment
Ministry of Justice,MoJ HQ,01-May-14,265000-IT & Telecommunications,NZ406-Strategic Estates Feeder,ATOS IT SERVICES UK LTD,1130738,164,IT peripherals/individual ordered software and equipment
Ministry of Justice,MoJ HQ,01-May-14,265000-IT & Telecommunications,NZ406-Strategic Estates Feeder,ATOS IT SERVICES UK LTD,1130738,164,IT peripherals/individual ordered software and equipment
Ministry of Justice,MoJ HQ,01-May-14,265000-IT & Telecommunications,NZ406-Strategic Estates Feeder,ATOS IT SERVICES UK LTD,1130738,46,IT peripherals/individual ordered software and equipment
Ministry of Justice,MoJ HQ,01-May-14,265000-IT & Telecommunications,NZ406-Strategic Estates Feeder,ATOS IT SERVICES UK LTD,1130738,50.85,IT peripherals/individual ordered software and equipment
Ministry of Justice,MoJ HQ,01-May-14,265000-IT & Telecommunications,NZ406-Strategic Estates Feeder,ATOS IT SERVICES UK LTD,1130738,82.78,IT peripherals/individual ordered software and equipment
Ministry of Justice,MoJ HQ,01-May-14,265000-IT & Telecommunications,NZ406-Strategic Estates Feeder,ATOS IT SERVICES UK LTD,1130738,46,IT peripherals/individual ordered software and equipment
Ministry of Justice,MoJ HQ,01-May-14,265000-IT & Telecommunications,NZ406-Strategic Estates Feeder,ATOS IT SERVICES UK LTD,1130738,82.78,IT peripherals/individual ordered software and equipment
Ministry of Justice,MoJ HQ,01-May-14,265000-IT & Telecommunications,NZ406-Strategic Estates Feeder,ATOS IT SERVICES UK LTD,1130738,25.23,IT peripherals/individual ordered software and equipment
Ministry of Justice,MoJ HQ,01-May-14,265000-IT & Telecommunications,NZ406-Strategic Estates Feeder,ATOS IT SERVICES UK LTD,1130738,82.78,IT peripherals/individual ordered software and equipment
Ministry of Justice,MoJ HQ,01-May-14,265000-IT & Telecommunications,NZ406-Strategic Estates Feeder,ATOS IT SERVICES UK LTD,1130738,58.47,IT peripherals/individual ordered software and equipment
Ministry of Justice,MoJ HQ,01-May-14,265000-IT & Telecommunications,NZ406-Strategic Estates Feeder,ATOS IT SERVICES UK LTD,1130738,144,IT peripherals/individual ordered software and equipment
Ministry of Justice,MoJ HQ,01-May-14,265000-IT & Telecommunications,NZ406-Strategic Estates Feeder,ATOS IT SERVICES UK LTD,1130738,113.84,IT peripherals/individual ordered software and equipment
Ministry of Justice,MoJ HQ,01-May-14,265000-IT & Telecommunications,NZ406-Strategic Estates Feeder,ATOS IT SERVICES UK LTD,1130738,10,IT peripherals/individual ordered software and equipment
Ministry of Justice,MoJ HQ,01-May-14,265000-IT & Telecommunications,NZ406-Strategic Estates Feeder,ATOS IT SERVICES UK LTD,1130738,859.37,IT peripherals/individual ordered software and equipment
Ministry of Justice,MoJ HQ,01-May-14,265000-IT & Telecommunications,NZ406-Strategic Estates Feeder,ATOS IT SERVICES UK LTD,1130738,168.1,IT peripherals/individual ordered software and equipment
Ministry of Justice,MoJ HQ,01-May-14,265000-IT & Telecommunications,NZ406-Strategic Estates Feeder,ATOS IT SERVICES UK LTD,1130738,11.16,IT peripherals/individual ordered software and equipment
Ministry of Justice,MoJ HQ,01-May-14,265000-IT & Telecommunications,NZ406-Strategic Estates Feeder,ATOS IT SERVICES UK LTD,1130738,6.38,IT peripherals/individual ordered software and equipment
Ministry of Justice,MoJ HQ,01-May-14,265000-IT & Telecommunications,NZ406-Strategic Estates Feeder,ATOS IT SERVICES UK LTD,1130738,264,IT peripherals/individual ordered software and equipment
Ministry of Justice,MoJ HQ,01-May-14,265000-IT & Telecommunications,NZ406-Strategic Estates Feeder,ATOS IT SERVICES UK LTD,1130738,46,IT peripherals/individual ordered software and equipment
Ministry of Justice,MoJ HQ,01-May-14,265000-IT & Telecommunications,NZ406-Strategic Estates Feeder,ATOS IT SERVICES UK LTD,1130738,25.78,IT peripherals/individual ordered software and equipment
Ministry of Justice,MoJ HQ,01-May-14,265000-IT & Telecommunications,NZ406-Strategic Estates Feeder,ATOS IT SERVICES UK LTD,1130738,82.78,IT peripherals/individual ordered software and equipment
Ministry of Justice,MoJ HQ,01-May-14,265000-IT & Telecommunications,NZ406-Strategic Estates Feeder,ATOS IT SERVICES UK LTD,1130738,46,IT peripherals/individual ordered software and equipment
Ministry of Justice,MoJ HQ,01-May-14,265000-IT & Telecommunications,NZ406-Strategic Estates Feeder,ATOS IT SERVICES UK LTD,1130738,46,IT peripherals/individual ordered software and equipment
Ministry of Justice,MoJ HQ,01-May-14,265000-IT & Telecommunications,NZ406-Strategic Estates Feeder,ATOS IT SERVICES UK LTD,1130738,46,IT peripherals/individual ordered software and equipment
Ministry of Justice,MoJ HQ,01-May-14,265000-IT & Telecommunications,NZ406-Strategic Estates Feeder,ATOS IT SERVICES UK LTD,1130738,113.16,IT peripherals/individual ordered software and equipment
Ministry of Justice,MoJ HQ,09-May-14,222002-Other Property Costs,NZ406-Strategic Estates Feeder,HOME OFFICE,4570,-0.01,N/A
Ministry of Justice,MoJ HQ,09-May-14,222002-Other Property Costs,NZ406-Strategic Estates Feeder,HOME OFFICE,4570,"24,273.49",Grenadier House utilities costs for 2013-14.
Ministry of Justice,MoJ HQ,09-May-14,222002-Other Property Costs,NZ406-Strategic Estates Feeder,HOME OFFICE,4570,"4,854.70",Grenadier House utilities costs for 2013-14.
Ministry of Justice,MoJ HQ,15-May-14,262000-SCA Costs,NZ406-Strategic Estates Feeder,LAND SECURITIES PROPERTIES LTD,1132014,"3,863,895.50",Petty France Incremental Rent for period April to June 2014
Ministry of Justice,MoJ HQ,22-May-14,223001-Printing Postage and Office expenditure,NZ406-Strategic Estates Feeder,LIBERATA UK LTD,1132587,"36,413.38",Printroom costs for Design/Print/Reprographic services (Non VAT Recoverable)
Ministry of Justice,MoJ HQ,19-May-14,223001-Printing Postage and Office expenditure,NZ406-Strategic Estates Feeder,LIBERATA UK LTD,1132292,"57,654.96",Printroom costs
Ministry of Justice,MoJ HQ,22-May-14,223001-Printing Postage and Office expenditure,NZ406-Strategic Estates Feeder,LIBERATA UK LTD,1132587,"7,282.68",Equal and opposite entry exists to cancel
Ministry of Justice,MoJ HQ,22-May-14,223001-Printing Postage and Office expenditure,NZ406-Strategic Estates Feeder,LIBERATA UK LTD,1132587,"-7,282.68",Equal and opposite entry exists to cancel
Ministry of Justice,MoJ HQ,15-May-14,223000-Other Expenditure,NZ406-Strategic Estates Feeder,TRUSTMARQUE SOLUTIONS LTD,1132150,"38,625.00",Annual Charge for Hosted Energy Management and Internet Display Services
Ministry of Justice,MoJ HQ,01-May-14,265000-IT & Telecommunications,NZ900-Finance & Corporate Services,ATOS IT SERVICES UK LTD,1130738,205.63,IT peripherals/individual ordered software and equipment
Ministry of Justice,MoJ HQ,01-May-14,265000-IT & Telecommunications,NZ900-Finance & Corporate Services,ATOS IT SERVICES UK LTD,1130738,33.33,IT peripherals/individual ordered software and equipment
Ministry of Justice,MoJ HQ,01-May-14,265000-IT & Telecommunications,NZ900-Finance & Corporate Services,ATOS IT SERVICES UK LTD,1130738,6.38,IT peripherals/individual ordered software and equipment
Ministry of Justice,MoJ HQ,01-May-14,265000-IT & Telecommunications,NZ900-Finance & Corporate Services,ATOS IT SERVICES UK LTD,1130738,76.9,IT peripherals/individual ordered software and equipment
Ministry of Justice,MoJ HQ,01-May-14,265000-IT & Telecommunications,NZ900-Finance & Corporate Services,ATOS IT SERVICES UK LTD,1130738,16.83,IT peripherals/individual ordered software and equipment
Ministry of Justice,MoJ HQ,12-May-14,265000-IT & Telecommunications,NZ900-Finance & Corporate Services,ATOS IT SERVICES UK LTD,1131552,"44,699.35", Decommission of UK Supreme Court Dom1 network and removal of Desktops
Ministry of Justice,MoJ HQ,01-May-14,265000-IT & Telecommunications,NZ900-Finance & Corporate Services,ATOS IT SERVICES UK LTD,1130738,"609,464.93",ICT Desktops (Schedule)
Ministry of Justice,MoJ HQ,01-May-14,265000-IT & Telecommunications,NZ900-Finance & Corporate Services,ATOS IT SERVICES UK LTD,1130738,"171,807.41",ICT Desktops (Schedule)
Ministry of Justice,MoJ HQ,06-May-14,265000-IT & Telecommunications,NZ900-Finance & Corporate Services,ATOS IT SERVICES UK LTD,1131049,"596,063.93",ICT Desktops (Schedule)
Ministry of Justice,MoJ HQ,01-May-14,265000-IT & Telecommunications,NZ900-Finance & Corporate Services,ATOS IT SERVICES UK LTD,1130738,20.19,IT peripherals/individual ordered software and equipment
Ministry of Justice,MoJ HQ,01-May-14,265000-IT & Telecommunications,NZ900-Finance & Corporate Services,ATOS IT SERVICES UK LTD,1130738,33.33,IT peripherals/individual ordered software and equipment
Ministry of Justice,MoJ HQ,01-May-14,265000-IT & Telecommunications,NZ900-Finance & Corporate Services,ATOS IT SERVICES UK LTD,1130738,168.02,IT peripherals/individual ordered software and equipment
Ministry of Justice,MoJ HQ,06-May-14,265000-IT & Telecommunications,NZ900-Finance & Corporate Services,ATOS IT SERVICES UK LTD,1131049,"103,165.60",ICT Laptops (Schedule)
Ministry of Justice,MoJ HQ,15-May-14,265000-IT & Telecommunications,NZ900-Finance & Corporate Services,ATOS IT SERVICES UK LTD,1131814,"1,310,001.63",ICT Network Services (Schedule)
Ministry of Justice,MoJ HQ,06-May-14,265000-IT & Telecommunications,NZ900-Finance & Corporate Services,ATOS IT SERVICES UK LTD,1131049,"548,404.00",ICT Service Desk (Schedule)
Ministry of Justice,MoJ HQ,01-May-14,265000-IT & Telecommunications,NZ900-Finance & Corporate Services,ATOS IT SERVICES UK LTD,1130738,"35,981.00",ICT Hosting (Schedule)
Ministry of Justice,MoJ HQ,01-May-14,265000-IT & Telecommunications,NZ900-Finance & Corporate Services,ATOS IT SERVICES UK LTD,1130738,"131,289.08",ICT Hosting (Schedule)
Ministry of Justice,MoJ HQ,06-May-14,265000-IT & Telecommunications,NZ900-Finance & Corporate Services,ATOS IT SERVICES UK LTD,1131049,"934,473.10",ICT Hosting (Schedule)
Ministry of Justice,MoJ HQ,06-May-14,265000-IT & Telecommunications,NZ900-Finance & Corporate Services,ATOS IT SERVICES UK LTD,1131049,"184,493.25",ICT Hosting (Schedule)
Ministry of Justice,MoJ HQ,29-May-14,265000-IT & Telecommunications,NZ900-Finance & Corporate Services,ATOS IT SERVICES UK LTD,1133146,"131,289.08",ICT Hosting (Schedule)
Ministry of Justice,MoJ HQ,06-May-14,265000-IT & Telecommunications,NZ900-Finance & Corporate Services,ATOS IT SERVICES UK LTD,1131049,"91,146.88",ICT Telephony (Schedule)
Ministry of Justice,MoJ HQ,06-May-14,265000-IT & Telecommunications,NZ900-Finance & Corporate Services,ATOS IT SERVICES UK LTD,1131049,"18,229.38",ICT Telephony (Schedule)
Ministry of Justice,MoJ HQ,06-May-14,265000-IT & Telecommunications,NZ900-Finance & Corporate Services,ATOS IT SERVICES UK LTD,1131049,"24,860.62",ICT Telephony (Schedule)
Ministry of Justice,MoJ HQ,06-May-14,265000-IT & Telecommunications,NZ900-Finance & Corporate Services,ATOS IT SERVICES UK LTD,1131049,"4,972.12",ICT Telephony (Schedule)
Ministry of Justice,MoJ HQ,22-May-14,265000-IT & Telecommunications,NZ900-Finance & Corporate Services,ATOS IT SERVICES UK LTD,1132422,"55,869.26",ICT Other (Schedule)
Ministry of Justice,MoJ HQ,22-May-14,265000-IT & Telecommunications,NZ900-Finance & Corporate Services,ATOS IT SERVICES UK LTD,1132422,"127,255.12",ICT Other (Schedule)
Ministry of Justice,MoJ HQ,22-May-14,265000-IT & Telecommunications,NZ900-Finance & Corporate Services,ATOS IT SERVICES UK LTD,1132422,"23,148.98",ICT Other (Schedule)
Ministry of Justice,MoJ HQ,29-May-14,265000-IT & Telecommunications,NZ900-Finance & Corporate Services,ATOS IT SERVICES UK LTD,1133146,"45,081.78",ICT Other (Schedule)
Ministry of Justice,MoJ HQ,01-May-14,265000-IT & Telecommunications,NZ900-Finance & Corporate Services,ATOS IT SERVICES UK LTD,1130738,859.37,Standard Power Down Request for DISC connected site with no site engineer assistance required
Ministry of Justice,MoJ HQ,01-May-14,265000-IT & Telecommunications,NZ900-Finance & Corporate Services,ATOS IT SERVICES UK LTD,1130738,"1,718.74",Standard Power Down Request for DISC connected site with no site engineer assistance required
Ministry of Justice,MoJ HQ,01-May-14,265000-IT & Telecommunications,NZ900-Finance & Corporate Services,ATOS IT SERVICES UK LTD,1130738,"1,589.73",Urgent Power Down Request for DISC connected site with no site engineer assistance required
Ministry of Justice,MoJ HQ,01-May-14,265000-IT & Telecommunications,NZ900-Finance & Corporate Services,ATOS IT SERVICES UK LTD,1130738,859.37,Standard Power Down Request for DISC connected site with no site engineer assistance required
Ministry of Justice,MoJ HQ,01-May-14,265000-IT & Telecommunications,NZ900-Finance & Corporate Services,ATOS IT SERVICES UK LTD,1130738,859.37,Standard Power Down Request for DISC connected site with no site engineer assistance required
Ministry of Justice,MoJ HQ,01-May-14,265000-IT & Telecommunications,NZ900-Finance & Corporate Services,ATOS IT SERVICES UK LTD,1130738,25.78,IT peripherals/individual ordered software and equipment
Ministry of Justice,MoJ HQ,01-May-14,265000-IT & Telecommunications,NZ900-Finance & Corporate Services,ATOS IT SERVICES UK LTD,1130738,121.96,IT peripherals/individual ordered software and equipment
Ministry of Justice,MoJ HQ,01-May-14,265000-IT & Telecommunications,NZ900-Finance & Corporate Services,ATOS IT SERVICES UK LTD,1130738,154.68,IT peripherals/individual ordered software and equipment
Ministry of Justice,MoJ HQ,01-May-14,265000-IT & Telecommunications,NZ900-Finance & Corporate Services,ATOS IT SERVICES UK LTD,1130738,25.78,IT peripherals/individual ordered software and equipment
Ministry of Justice,MoJ HQ,01-May-14,265000-IT & Telecommunications,NZ900-Finance & Corporate Services,ATOS IT SERVICES UK LTD,1130738,11.62,IT peripherals/individual ordered software and equipment
Ministry of Justice,MoJ HQ,01-May-14,265000-IT & Telecommunications,NZ900-Finance & Corporate Services,ATOS IT SERVICES UK LTD,1130738,11.62,IT peripherals/individual ordered software and equipment
Ministry of Justice,MoJ HQ,01-May-14,265000-IT & Telecommunications,NZ900-Finance & Corporate Services,ATOS IT SERVICES UK LTD,1130738,11.62,IT peripherals/individual ordered software and equipment
Ministry of Justice,MoJ HQ,01-May-14,265000-IT & Telecommunications,NZ900-Finance & Corporate Services,ATOS IT SERVICES UK LTD,1130738,168.1,IT peripherals/individual ordered software and equipment
Ministry of Justice,MoJ HQ,01-May-14,265000-IT & Telecommunications,NZ900-Finance & Corporate Services,ATOS IT SERVICES UK LTD,1130738,11.16,IT peripherals/individual ordered software and equipment
Ministry of Justice,MoJ HQ,01-May-14,265000-IT & Telecommunications,NZ900-Finance & Corporate Services,ATOS IT SERVICES UK LTD,1130738,164,IT peripherals/individual ordered software and equipment
Ministry of Justice,MoJ HQ,01-May-14,265000-IT & Telecommunications,NZ900-Finance & Corporate Services,ATOS IT SERVICES UK LTD,1130738,820,IT peripherals/individual ordered software and equipment
Ministry of Justice,MoJ HQ,01-May-14,265000-IT & Telecommunications,NZ900-Finance & Corporate Services,ATOS IT SERVICES UK LTD,1130738,164,IT peripherals/individual ordered software and equipment
Ministry of Justice,MoJ HQ,01-May-14,265000-IT & Telecommunications,NZ900-Finance & Corporate Services,ATOS IT SERVICES UK LTD,1130738,264,IT peripherals/individual ordered software and equipment
Ministry of Justice,MoJ HQ,01-May-14,265000-IT & Telecommunications,NZ900-Finance & Corporate Services,ATOS IT SERVICES UK LTD,1130738,164,IT peripherals/individual ordered software and equipment
Ministry of Justice,MoJ HQ,01-May-14,265000-IT & Telecommunications,NZ900-Finance & Corporate Services,ATOS IT SERVICES UK LTD,1130738,528,IT peripherals/individual ordered software and equipment
Ministry of Justice,MoJ HQ,01-May-14,265000-IT & Telecommunications,NZ900-Finance & Corporate Services,ATOS IT SERVICES UK LTD,1130738,264,IT peripherals/individual ordered software and equipment
Ministry of Justice,MoJ HQ,01-May-14,265000-IT & Telecommunications,NZ900-Finance & Corporate Services,ATOS IT SERVICES UK LTD,1130738,25.78,IT peripherals/individual ordered software and equipment
Ministry of Justice,MoJ HQ,01-May-14,265000-IT & Telecommunications,NZ900-Finance & Corporate Services,ATOS IT SERVICES UK LTD,1130738,309,IT peripherals/individual ordered software and equipment
Ministry of Justice,MoJ HQ,01-May-14,265000-IT & Telecommunications,NZ900-Finance & Corporate Services,ATOS IT SERVICES UK LTD,1130738,46,IT peripherals/individual ordered software and equipment
Ministry of Justice,MoJ HQ,01-May-14,265000-IT & Telecommunications,NZ900-Finance & Corporate Services,ATOS IT SERVICES UK LTD,1130738,46,IT peripherals/individual ordered software and equipment
Ministry of Justice,MoJ HQ,01-May-14,265000-IT & Telecommunications,NZ900-Finance & Corporate Services,ATOS IT SERVICES UK LTD,1130738,56.55,IT peripherals/individual ordered software and equipment
Ministry of Justice,MoJ HQ,01-May-14,265000-IT & Telecommunications,NZ900-Finance & Corporate Services,ATOS IT SERVICES UK LTD,1130738,46,IT peripherals/individual ordered software and equipment
Ministry of Justice,MoJ HQ,01-May-14,265000-IT & Telecommunications,NZ900-Finance & Corporate Services,ATOS IT SERVICES UK LTD,1130738,25.78,IT peripherals/individual ordered software and equipment
Ministry of Justice,MoJ HQ,01-May-14,265000-IT & Telecommunications,NZ900-Finance & Corporate Services,ATOS IT SERVICES UK LTD,1130738,46,IT peripherals/individual ordered software and equipment
Ministry of Justice,MoJ HQ,01-May-14,265000-IT & Telecommunications,NZ900-Finance & Corporate Services,ATOS IT SERVICES UK LTD,1130738,46,IT peripherals/individual ordered software and equipment
Ministry of Justice,MoJ HQ,01-May-14,265000-IT & Telecommunications,NZ900-Finance & Corporate Services,ATOS IT SERVICES UK LTD,1130738,92,IT peripherals/individual ordered software and equipment
Ministry of Justice,MoJ HQ,01-May-14,265000-IT & Telecommunications,NZ900-Finance & Corporate Services,ATOS IT SERVICES UK LTD,1130738,25.78,IT peripherals/individual ordered software and equipment
Ministry of Justice,MoJ HQ,01-May-14,265000-IT & Telecommunications,NZ900-Finance & Corporate Services,ATOS IT SERVICES UK LTD,1130738,25.78,IT peripherals/individual ordered software and equipment
Ministry of Justice,MoJ HQ,01-May-14,265000-IT & Telecommunications,NZ900-Finance & Corporate Services,ATOS IT SERVICES UK LTD,1130738,25.78,IT peripherals/individual ordered software and equipment
Ministry of Justice,MoJ HQ,01-May-14,265000-IT & Telecommunications,NZ900-Finance & Corporate Services,ATOS IT SERVICES UK LTD,1130738,46,IT peripherals/individual ordered software and equipment
Ministry of Justice,MoJ HQ,01-May-14,265000-IT & Telecommunications,NZ900-Finance & Corporate Services,ATOS IT SERVICES UK LTD,1130738,46,IT peripherals/individual ordered software and equipment
Ministry of Justice,MoJ HQ,01-May-14,265000-IT & Telecommunications,NZ900-Finance & Corporate Services,ATOS IT SERVICES UK LTD,1130738,46,IT peripherals/individual ordered software and equipment
Ministry of Justice,MoJ HQ,01-May-14,265000-IT & Telecommunications,NZ900-Finance & Corporate Services,ATOS IT SERVICES UK LTD,1130738,46,IT peripherals/individual ordered software and equipment
Ministry of Justice,MoJ HQ,01-May-14,265000-IT & Telecommunications,NZ900-Finance & Corporate Services,ATOS IT SERVICES UK LTD,1130738,46,IT peripherals/individual ordered software and equipment
Ministry of Justice,MoJ HQ,01-May-14,265000-IT & Telecommunications,NZ900-Finance & Corporate Services,ATOS IT SERVICES UK LTD,1130738,165.56,IT peripherals/individual ordered software and equipment
Ministry of Justice,MoJ HQ,01-May-14,265000-IT & Telecommunications,NZ900-Finance & Corporate Services,ATOS IT SERVICES UK LTD,1130738,82.78,IT peripherals/individual ordered software and equipment
Ministry of Justice,MoJ HQ,01-May-14,265000-IT & Telecommunications,NZ900-Finance & Corporate Services,ATOS IT SERVICES UK LTD,1130738,82.78,IT peripherals/individual ordered software and equipment
Ministry of Justice,MoJ HQ,01-May-14,265000-IT & Telecommunications,NZ900-Finance & Corporate Services,ATOS IT SERVICES UK LTD,1130738,50.9,IT peripherals/individual ordered software and equipment
Ministry of Justice,MoJ HQ,01-May-14,265000-IT & Telecommunications,NZ900-Finance & Corporate Services,ATOS IT SERVICES UK LTD,1130738,111.45,IT peripherals/individual ordered software and equipment
Ministry of Justice,MoJ HQ,01-May-14,265000-IT & Telecommunications,NZ900-Finance & Corporate Services,ATOS IT SERVICES UK LTD,1130738,11.62,IT peripherals/individual ordered software and equipment
Ministry of Justice,MoJ HQ,01-May-14,265000-IT & Telecommunications,NZ900-Finance & Corporate Services,ATOS IT SERVICES UK LTD,1130738,66.86,IT peripherals/individual ordered software and equipment
Ministry of Justice,MoJ HQ,01-May-14,265000-IT & Telecommunications,NZ900-Finance & Corporate Services,ATOS IT SERVICES UK LTD,1130738,11.62,IT peripherals/individual ordered software and equipment
Ministry of Justice,MoJ HQ,01-May-14,265000-IT & Telecommunications,NZ900-Finance & Corporate Services,ATOS IT SERVICES UK LTD,1130738,11.62,IT peripherals/individual ordered software and equipment
Ministry of Justice,MoJ HQ,01-May-14,265000-IT & Telecommunications,NZ900-Finance & Corporate Services,ATOS IT SERVICES UK LTD,1130738,11.62,IT peripherals/individual ordered software and equipment
Ministry of Justice,MoJ HQ,01-May-14,265000-IT & Telecommunications,NZ900-Finance & Corporate Services,ATOS IT SERVICES UK LTD,1130738,23.11,IT peripherals/individual ordered software and equipment
Ministry of Justice,MoJ HQ,01-May-14,265000-IT & Telecommunications,NZ900-Finance & Corporate Services,ATOS IT SERVICES UK LTD,1130738,258.33,IT peripherals/individual ordered software and equipment
Ministry of Justice,MoJ HQ,01-May-14,265000-IT & Telecommunications,NZ900-Finance & Corporate Services,ATOS IT SERVICES UK LTD,1130738,258.33,IT peripherals/individual ordered software and equipment
Ministry of Justice,MoJ HQ,01-May-14,265000-IT & Telecommunications,NZ900-Finance & Corporate Services,ATOS IT SERVICES UK LTD,1130738,46,IT peripherals/individual ordered software and equipment
Ministry of Justice,MoJ HQ,01-May-14,265000-IT & Telecommunications,NZ900-Finance & Corporate Services,ATOS IT SERVICES UK LTD,1130738,46,IT peripherals/individual ordered software and equipment
Ministry of Justice,MoJ HQ,01-May-14,265000-IT & Telecommunications,NZ900-Finance & Corporate Services,ATOS IT SERVICES UK LTD,1130738,25.78,IT peripherals/individual ordered software and equipment
Ministry of Justice,MoJ HQ,01-May-14,265000-IT & Telecommunications,NZ900-Finance & Corporate Services,ATOS IT SERVICES UK LTD,1130738,46,IT peripherals/individual ordered software and equipment
Ministry of Justice,MoJ HQ,01-May-14,265000-IT & Telecommunications,NZ900-Finance & Corporate Services,ATOS IT SERVICES UK LTD,1130738,25.78,IT peripherals/individual ordered software and equipment
Ministry of Justice,MoJ HQ,01-May-14,265000-IT & Telecommunications,NZ900-Finance & Corporate Services,ATOS IT SERVICES UK LTD,1130738,11.62,IT peripherals/individual ordered software and equipment
Ministry of Justice,MoJ HQ,01-May-14,265000-IT & Telecommunications,NZ900-Finance & Corporate Services,ATOS IT SERVICES UK LTD,1130738,11.62,IT peripherals/individual ordered software and equipment
Ministry of Justice,MoJ HQ,01-May-14,265000-IT & Telecommunications,NZ900-Finance & Corporate Services,ATOS IT SERVICES UK LTD,1130738,11.62,IT peripherals/individual ordered software and equipment
Ministry of Justice,MoJ HQ,01-May-14,265000-IT & Telecommunications,NZ900-Finance & Corporate Services,ATOS IT SERVICES UK LTD,1130738,11.62,IT peripherals/individual ordered software and equipment
Ministry of Justice,MoJ HQ,01-May-14,265000-IT & Telecommunications,NZ900-Finance & Corporate Services,ATOS IT SERVICES UK LTD,1130738,11.62,IT peripherals/individual ordered software and equipment
Ministry of Justice,MoJ HQ,01-May-14,265000-IT & Telecommunications,NZ900-Finance & Corporate Services,ATOS IT SERVICES UK LTD,1130738,25.23,IT peripherals/individual ordered software and equipment
Ministry of Justice,MoJ HQ,01-May-14,265000-IT & Telecommunications,NZ900-Finance & Corporate Services,ATOS IT SERVICES UK LTD,1130738,11.62,IT peripherals/individual ordered software and equipment
Ministry of Justice,MoJ HQ,01-May-14,265000-IT & Telecommunications,NZ900-Finance & Corporate Services,ATOS IT SERVICES UK LTD,1130738,82.78,IT peripherals/individual ordered software and equipment
Ministry of Justice,MoJ HQ,01-May-14,265000-IT & Telecommunications,NZ900-Finance & Corporate Services,ATOS IT SERVICES UK LTD,1130738,90.28,IT peripherals/individual ordered software and equipment
Ministry of Justice,MoJ HQ,01-May-14,265000-IT & Telecommunications,NZ900-Finance & Corporate Services,ATOS IT SERVICES UK LTD,1130738,25.78,IT peripherals/individual ordered software and equipment
Ministry of Justice,MoJ HQ,01-May-14,265000-IT & Telecommunications,NZ900-Finance & Corporate Services,ATOS IT SERVICES UK LTD,1130738,25.78,IT peripherals/individual ordered software and equipment
Ministry of Justice,MoJ HQ,01-May-14,265000-IT & Telecommunications,NZ900-Finance & Corporate Services,ATOS IT SERVICES UK LTD,1130738,51.56,IT peripherals/individual ordered software and equipment
Ministry of Justice,MoJ HQ,01-May-14,265000-IT & Telecommunications,NZ900-Finance & Corporate Services,ATOS IT SERVICES UK LTD,1130738,25.78,IT peripherals/individual ordered software and equipment
Ministry of Justice,MoJ HQ,01-May-14,265000-IT & Telecommunications,NZ900-Finance & Corporate Services,ATOS IT SERVICES UK LTD,1130738,11.62,IT peripherals/individual ordered software and equipment
Ministry of Justice,MoJ HQ,01-May-14,265000-IT & Telecommunications,NZ900-Finance & Corporate Services,ATOS IT SERVICES UK LTD,1130738,11.62,IT peripherals/individual ordered software and equipment
Ministry of Justice,MoJ HQ,01-May-14,265000-IT & Telecommunications,NZ900-Finance & Corporate Services,ATOS IT SERVICES UK LTD,1130738,11.62,IT peripherals/individual ordered software and equipment
Ministry of Justice,MoJ HQ,01-May-14,265000-IT & Telecommunications,NZ900-Finance & Corporate Services,ATOS IT SERVICES UK LTD,1130738,23.24,IT peripherals/individual ordered software and equipment
Ministry of Justice,MoJ HQ,01-May-14,265000-IT & Telecommunications,NZ900-Finance & Corporate Services,ATOS IT SERVICES UK LTD,1130738,11.62,IT peripherals/individual ordered software and equipment
Ministry of Justice,MoJ HQ,01-May-14,265000-IT & Telecommunications,NZ900-Finance & Corporate Services,ATOS IT SERVICES UK LTD,1130738,78.26,IT peripherals/individual ordered software and equipment
Ministry of Justice,MoJ HQ,01-May-14,265000-IT & Telecommunications,NZ900-Finance & Corporate Services,ATOS IT SERVICES UK LTD,1130738,116.08,IT peripherals/individual ordered software and equipment
Ministry of Justice,MoJ HQ,01-May-14,265000-IT & Telecommunications,NZ900-Finance & Corporate Services,ATOS IT SERVICES UK LTD,1130738,25.78,IT peripherals/individual ordered software and equipment
Ministry of Justice,MoJ HQ,01-May-14,265000-IT & Telecommunications,NZ900-Finance & Corporate Services,ATOS IT SERVICES UK LTD,1130738,25.78,IT peripherals/individual ordered software and equipment
Ministry of Justice,MoJ HQ,01-May-14,265000-IT & Telecommunications,NZ900-Finance & Corporate Services,ATOS IT SERVICES UK LTD,1130738,11.62,IT peripherals/individual ordered software and equipment
Ministry of Justice,MoJ HQ,01-May-14,265000-IT & Telecommunications,NZ900-Finance & Corporate Services,ATOS IT SERVICES UK LTD,1130738,219.64,IT peripherals/individual ordered software and equipment
Ministry of Justice,MoJ HQ,01-May-14,265000-IT & Telecommunications,NZ900-Finance & Corporate Services,ATOS IT SERVICES UK LTD,1130738,"3,317.00",IT peripherals/individual ordered software and equipment
Ministry of Justice,MoJ HQ,01-May-14,265000-IT & Telecommunications,NZ900-Finance & Corporate Services,ATOS IT SERVICES UK LTD,1130738,"2,145.00",IT peripherals/individual ordered software and equipment
Ministry of Justice,MoJ HQ,01-May-14,265000-IT & Telecommunications,NZ900-Finance & Corporate Services,ATOS IT SERVICES UK LTD,1130738,"2,580.00",IT peripherals/individual ordered software and equipment
Ministry of Justice,MoJ HQ,01-May-14,265000-IT & Telecommunications,NZ900-Finance & Corporate Services,ATOS IT SERVICES UK LTD,1130738,46,IT peripherals/individual ordered software and equipment
Ministry of Justice,MoJ HQ,01-May-14,265000-IT & Telecommunications,NZ900-Finance & Corporate Services,ATOS IT SERVICES UK LTD,1130738,"1,398.30",Standard Power Down Request for DISC connected site with on site engineer assistance required
Ministry of Justice,MoJ HQ,01-May-14,265000-IT & Telecommunications,NZ900-Finance & Corporate Services,ATOS IT SERVICES UK LTD,1130738,11.62,IT peripherals/individual ordered software and equipment
Ministry of Justice,MoJ HQ,01-May-14,265000-IT & Telecommunications,NZ900-Finance & Corporate Services,ATOS IT SERVICES UK LTD,1130738,11.62,IT peripherals/individual ordered software and equipment
Ministry of Justice,MoJ HQ,01-May-14,265000-IT & Telecommunications,NZ900-Finance & Corporate Services,ATOS IT SERVICES UK LTD,1130738,78.26,IT peripherals/individual ordered software and equipment
Ministry of Justice,MoJ HQ,01-May-14,265000-IT & Telecommunications,NZ900-Finance & Corporate Services,ATOS IT SERVICES UK LTD,1130738,82.78,IT peripherals/individual ordered software and equipment
Ministry of Justice,MoJ HQ,01-May-14,265000-IT & Telecommunications,NZ900-Finance & Corporate Services,ATOS IT SERVICES UK LTD,1130738,25.78,IT peripherals/individual ordered software and equipment
Ministry of Justice,MoJ HQ,01-May-14,265000-IT & Telecommunications,NZ900-Finance & Corporate Services,ATOS IT SERVICES UK LTD,1130738,66.86,IT peripherals/individual ordered software and equipment
Ministry of Justice,MoJ HQ,01-May-14,265000-IT & Telecommunications,NZ900-Finance & Corporate Services,ATOS IT SERVICES UK LTD,1130738,792,IT peripherals/individual ordered software and equipment
Ministry of Justice,MoJ HQ,01-May-14,265000-IT & Telecommunications,NZ900-Finance & Corporate Services,ATOS IT SERVICES UK LTD,1130738,6.66,IT peripherals/individual ordered software and equipment
Ministry of Justice,MoJ HQ,01-May-14,265000-IT & Telecommunications,NZ900-Finance & Corporate Services,ATOS IT SERVICES UK LTD,1130738,5.25,IT peripherals/individual ordered software and equipment
Ministry of Justice,MoJ HQ,01-May-14,265000-IT & Telecommunications,NZ900-Finance & Corporate Services,ATOS IT SERVICES UK LTD,1130738,58,IT peripherals/individual ordered software and equipment
Ministry of Justice,MoJ HQ,01-May-14,265000-IT & Telecommunications,NZ900-Finance & Corporate Services,ATOS IT SERVICES UK LTD,1130738,60.34,IT peripherals/individual ordered software and equipment
Ministry of Justice,MoJ HQ,01-May-14,265000-IT & Telecommunications,NZ900-Finance & Corporate Services,ATOS IT SERVICES UK LTD,1130738,6.66,IT peripherals/individual ordered software and equipment
Ministry of Justice,MoJ HQ,01-May-14,265000-IT & Telecommunications,NZ900-Finance & Corporate Services,ATOS IT SERVICES UK LTD,1130738,5.25,IT peripherals/individual ordered software and equipment
Ministry of Justice,MoJ HQ,01-May-14,265000-IT & Telecommunications,NZ900-Finance & Corporate Services,ATOS IT SERVICES UK LTD,1130738,58,IT peripherals/individual ordered software and equipment
Ministry of Justice,MoJ HQ,01-May-14,265000-IT & Telecommunications,NZ900-Finance & Corporate Services,ATOS IT SERVICES UK LTD,1130738,60.34,IT peripherals/individual ordered software and equipment
Ministry of Justice,MoJ HQ,01-May-14,265000-IT & Telecommunications,NZ900-Finance & Corporate Services,ATOS IT SERVICES UK LTD,1130738,6.38,IT peripherals/individual ordered software and equipment
Ministry of Justice,MoJ HQ,01-May-14,265000-IT & Telecommunications,NZ900-Finance & Corporate Services,ATOS IT SERVICES UK LTD,1130738,312.12,IT peripherals/individual ordered software and equipment
Ministry of Justice,MoJ HQ,01-May-14,265000-IT & Telecommunications,NZ900-Finance & Corporate Services,ATOS IT SERVICES UK LTD,1130738,164,IT peripherals/individual ordered software and equipment
Ministry of Justice,MoJ HQ,01-May-14,265000-IT & Telecommunications,NZ900-Finance & Corporate Services,ATOS IT SERVICES UK LTD,1130738,164,IT peripherals/individual ordered software and equipment
Ministry of Justice,MoJ HQ,01-May-14,265000-IT & Telecommunications,NZ900-Finance & Corporate Services,ATOS IT SERVICES UK LTD,1130738,"27,909.00",Axis House Expansion  Move of Hagley Road One off Charge
Ministry of Justice,MoJ HQ,01-May-14,265000-IT & Telecommunications,NZ900-Finance & Corporate Services,ATOS IT SERVICES UK LTD,1130738,77.34,IT peripherals/individual ordered software and equipment
Ministry of Justice,MoJ HQ,01-May-14,265000-IT & Telecommunications,NZ900-Finance & Corporate Services,ATOS IT SERVICES UK LTD,1130738,46,IT peripherals/individual ordered software and equipment
Ministry of Justice,MoJ HQ,01-May-14,265000-IT & Telecommunications,NZ900-Finance & Corporate Services,ATOS IT SERVICES UK LTD,1130738,25.78,IT peripherals/individual ordered software and equipment
Ministry of Justice,MoJ HQ,01-May-14,265000-IT & Telecommunications,NZ900-Finance & Corporate Services,ATOS IT SERVICES UK LTD,1130738,46,IT peripherals/individual ordered software and equipment
Ministry of Justice,MoJ HQ,01-May-14,265000-IT & Telecommunications,NZ900-Finance & Corporate Services,ATOS IT SERVICES UK LTD,1130738,309,IT peripherals/individual ordered software and equipment
Ministry of Justice,MoJ HQ,01-May-14,265000-IT & Telecommunications,NZ900-Finance & Corporate Services,ATOS IT SERVICES UK LTD,1130738,25.78,IT peripherals/individual ordered software and equipment
Ministry of Justice,MoJ HQ,01-May-14,265000-IT & Telecommunications,NZ900-Finance & Corporate Services,ATOS IT SERVICES UK LTD,1130738,103.12,IT peripherals/individual ordered software and equipment
Ministry of Justice,MoJ HQ,01-May-14,265000-IT & Telecommunications,NZ900-Finance & Corporate Services,ATOS IT SERVICES UK LTD,1130738,25.78,IT peripherals/individual ordered software and equipment
Ministry of Justice,MoJ HQ,01-May-14,265000-IT & Telecommunications,NZ900-Finance & Corporate Services,ATOS IT SERVICES UK LTD,1130738,25.78,IT peripherals/individual ordered software and equipment
Ministry of Justice,MoJ HQ,01-May-14,265000-IT & Telecommunications,NZ900-Finance & Corporate Services,ATOS IT SERVICES UK LTD,1130738,103.12,IT peripherals/individual ordered software and equipment
Ministry of Justice,MoJ HQ,01-May-14,265000-IT & Telecommunications,NZ900-Finance & Corporate Services,ATOS IT SERVICES UK LTD,1130738,25.78,IT peripherals/individual ordered software and equipment
Ministry of Justice,MoJ HQ,01-May-14,265000-IT & Telecommunications,NZ900-Finance & Corporate Services,ATOS IT SERVICES UK LTD,1130738,128.9,IT peripherals/individual ordered software and equipment
Ministry of Justice,MoJ HQ,01-May-14,265000-IT & Telecommunications,NZ900-Finance & Corporate Services,ATOS IT SERVICES UK LTD,1130738,25.78,IT peripherals/individual ordered software and equipment
Ministry of Justice,MoJ HQ,01-May-14,265000-IT & Telecommunications,NZ900-Finance & Corporate Services,ATOS IT SERVICES UK LTD,1130738,587.22,IT peripherals/individual ordered software and equipment
Ministry of Justice,MoJ HQ,01-May-14,265000-IT & Telecommunications,NZ900-Finance & Corporate Services,ATOS IT SERVICES UK LTD,1130738,82.78,IT peripherals/individual ordered software and equipment
Ministry of Justice,MoJ HQ,01-May-14,265000-IT & Telecommunications,NZ900-Finance & Corporate Services,ATOS IT SERVICES UK LTD,1130738,"1,317.84",IT peripherals/individual ordered software and equipment
Ministry of Justice,MoJ HQ,01-May-14,265000-IT & Telecommunications,NZ900-Finance & Corporate Services,ATOS IT SERVICES UK LTD,1130738,23.24,IT peripherals/individual ordered software and equipment
Ministry of Justice,MoJ HQ,01-May-14,265000-IT & Telecommunications,NZ900-Finance & Corporate Services,ATOS IT SERVICES UK LTD,1130738,82.78,IT peripherals/individual ordered software and equipment
Ministry of Justice,MoJ HQ,01-May-14,265000-IT & Telecommunications,NZ900-Finance & Corporate Services,ATOS IT SERVICES UK LTD,1130738,22.25,IT peripherals/individual ordered software and equipment
Ministry of Justice,MoJ HQ,01-May-14,265000-IT & Telecommunications,NZ900-Finance & Corporate Services,ATOS IT SERVICES UK LTD,1130738,22.2,IT peripherals/individual ordered software and equipment
Ministry of Justice,MoJ HQ,01-May-14,265000-IT & Telecommunications,NZ900-Finance & Corporate Services,ATOS IT SERVICES UK LTD,1130738,43.22,IT peripherals/individual ordered software and equipment
Ministry of Justice,MoJ HQ,01-May-14,265000-IT & Telecommunications,NZ900-Finance & Corporate Services,ATOS IT SERVICES UK LTD,1130738,328,IT peripherals/individual ordered software and equipment
Ministry of Justice,MoJ HQ,01-May-14,265000-IT & Telecommunications,NZ900-Finance & Corporate Services,ATOS IT SERVICES UK LTD,1130738,164,IT peripherals/individual ordered software and equipment
Ministry of Justice,MoJ HQ,01-May-14,265000-IT & Telecommunications,NZ900-Finance & Corporate Services,ATOS IT SERVICES UK LTD,1130738,164,IT peripherals/individual ordered software and equipment
Ministry of Justice,MoJ HQ,01-May-14,265000-IT & Telecommunications,NZ900-Finance & Corporate Services,ATOS IT SERVICES UK LTD,1130738,164,IT peripherals/individual ordered software and equipment
Ministry of Justice,MoJ HQ,01-May-14,265000-IT & Telecommunications,NZ900-Finance & Corporate Services,ATOS IT SERVICES UK LTD,1130738,328,IT peripherals/individual ordered software and equipment
Ministry of Justice,MoJ HQ,01-May-14,265000-IT & Telecommunications,NZ900-Finance & Corporate Services,ATOS IT SERVICES UK LTD,1130738,164,IT peripherals/individual ordered software and equipment
Ministry of Justice,MoJ HQ,01-May-14,265000-IT & Telecommunications,NZ900-Finance & Corporate Services,ATOS IT SERVICES UK LTD,1130738,164,IT peripherals/individual ordered software and equipment
Ministry of Justice,MoJ HQ,01-May-14,265000-IT & Telecommunications,NZ900-Finance & Corporate Services,ATOS IT SERVICES UK LTD,1130738,164,IT peripherals/individual ordered software and equipment
Ministry of Justice,MoJ HQ,01-May-14,265000-IT & Telecommunications,NZ900-Finance & Corporate Services,ATOS IT SERVICES UK LTD,1130738,164,IT peripherals/individual ordered software and equipment
Ministry of Justice,MoJ HQ,01-May-14,265000-IT & Telecommunications,NZ900-Finance & Corporate Services,ATOS IT SERVICES UK LTD,1130738,92,IT peripherals/individual ordered software and equipment
Ministry of Justice,MoJ HQ,01-May-14,265000-IT & Telecommunications,NZ900-Finance & Corporate Services,ATOS IT SERVICES UK LTD,1130738,46,IT peripherals/individual ordered software and equipment
Ministry of Justice,MoJ HQ,01-May-14,265000-IT & Telecommunications,NZ900-Finance & Corporate Services,ATOS IT SERVICES UK LTD,1130738,46,IT peripherals/individual ordered software and equipment
Ministry of Justice,MoJ HQ,01-May-14,265000-IT & Telecommunications,NZ900-Finance & Corporate Services,ATOS IT SERVICES UK LTD,1130738,46,IT peripherals/individual ordered software and equipment
Ministry of Justice,MoJ HQ,01-May-14,265000-IT & Telecommunications,NZ900-Finance & Corporate Services,ATOS IT SERVICES UK LTD,1130738,265.63,IT peripherals/individual ordered software and equipment
Ministry of Justice,MoJ HQ,01-May-14,265000-IT & Telecommunications,NZ900-Finance & Corporate Services,ATOS IT SERVICES UK LTD,1130738,46,IT peripherals/individual ordered software and equipment
Ministry of Justice,MoJ HQ,01-May-14,265000-IT & Telecommunications,NZ900-Finance & Corporate Services,ATOS IT SERVICES UK LTD,1130738,25.78,IT peripherals/individual ordered software and equipment
Ministry of Justice,MoJ HQ,01-May-14,265000-IT & Telecommunications,NZ900-Finance & Corporate Services,ATOS IT SERVICES UK LTD,1130738,11.62,IT peripherals/individual ordered software and equipment
Ministry of Justice,MoJ HQ,01-May-14,265000-IT & Telecommunications,NZ900-Finance & Corporate Services,ATOS IT SERVICES UK LTD,1130738,25.78,IT peripherals/individual ordered software and equipment
Ministry of Justice,MoJ HQ,01-May-14,265000-IT & Telecommunications,NZ900-Finance & Corporate Services,ATOS IT SERVICES UK LTD,1130738,11.62,IT peripherals/individual ordered software and equipment
Ministry of Justice,MoJ HQ,01-May-14,265000-IT & Telecommunications,NZ900-Finance & Corporate Services,ATOS IT SERVICES UK LTD,1130738,11.17,IT peripherals/individual ordered software and equipment
Ministry of Justice,MoJ HQ,15-May-14,212001-Agency staff,NZ900-Finance & Corporate Services,CAPITA RESOURCING LTD,1131872,"26,297.15",Business Planning and Resource Manager
Ministry of Justice,MoJ HQ,15-May-14,212001-Agency staff,NZ900-Finance & Corporate Services,CAPITA RESOURCING LTD,1131872,"5,259.43",Business Planning and Resource Manager
Ministry of Justice,MoJ HQ,06-May-14,265000-IT & Telecommunications,NZ900-Finance & Corporate Services,CGI IT UK LTD,1131080,"402,178.00",ICT Hosting (Schedule)
Ministry of Justice,MoJ HQ,01-May-14,265000-IT & Telecommunications,NZ900-Finance & Corporate Services,CGI IT UK LTD,1130772,"117,253.42",ICT App Maint & Supp (Schedule)
Ministry of Justice,MoJ HQ,01-May-14,265000-IT & Telecommunications,NZ900-Finance & Corporate Services,CGI IT UK LTD,1130772,"21,091.00",Ongoing Business As Usual Service Charges for Application Maintenance and Support for two Applications
Ministry of Justice,MoJ HQ,06-May-14,265000-IT & Telecommunications,NZ900-Finance & Corporate Services,CGI IT UK LTD,1131080,"2,040,887.08",ICT App Maint & Supp (Schedule)
Ministry of Justice,MoJ HQ,08-May-14,265000-IT & Telecommunications,NZ900-Finance & Corporate Services,CGI IT UK LTD,1131338,"122,016.33",ICT App Maint & Supp (Schedule)
Ministry of Justice,MoJ HQ,08-May-14,265000-IT & Telecommunications,NZ900-Finance & Corporate Services,CGI IT UK LTD,1131338,"21,091.00",Ongoing Business As Usual Service Charges for Application Maintenance and Support for two Applications
Ministry of Justice,MoJ HQ,12-May-14,265000-IT & Telecommunications,NZ900-Finance & Corporate Services,CGI IT UK LTD,1131580,"327,401.37",ICT Printing (Schedule)
Ministry of Justice,MoJ HQ,27-May-14,265000-IT & Telecommunications,NZ900-Finance & Corporate Services,CGI IT UK LTD,1132787,"20,973.75",Support delivery of the Core Team Exit Management Services
Ministry of Justice,MoJ HQ,15-May-14,265000-IT & Telecommunications,NZ900-Finance & Corporate Services,CGI IT UK LTD,1131875,"101,738.99",Professional Charges-One Off Charge
Ministry of Justice,MoJ HQ,19-May-14,265000-IT & Telecommunications,NZ900-Finance & Corporate Services,CGI IT UK LTD,1132224,"58,507.72",Professional Charges-One Off Charge
Ministry of Justice,MoJ HQ,15-May-14,512000-Intangible GBV - Additions,NZ900-Finance & Corporate Services,CGI IT UK LTD,1131875,"37,172.00",Funding for taking Control of Goods Act
Ministry of Justice,MoJ HQ,19-May-14,265000-IT & Telecommunications,NZ900-Finance & Corporate Services,FUJITSU SERVICES LTD,1132255,-0.01,N/A
Ministry of Justice,MoJ HQ,19-May-14,265000-IT & Telecommunications,NZ900-Finance & Corporate Services,FUJITSU SERVICES LTD,1132255,"22,063.54", Youth Justice Board Additional Support August 2013 - July 2014
Ministry of Justice,MoJ HQ,19-May-14,265000-IT & Telecommunications,NZ900-Finance & Corporate Services,FUJITSU SERVICES LTD,1132255,"4,412.71", Youth Justice Board Additional Support August 2013 - July 2014
Ministry of Justice,MoJ HQ,19-May-14,265000-IT & Telecommunications,NZ900-Finance & Corporate Services,FUJITSU SERVICES LTD,1132255,"40,178.05",Connectivity Support (Aug 13 to Jul14)
Ministry of Justice,MoJ HQ,19-May-14,265000-IT & Telecommunications,NZ900-Finance & Corporate Services,FUJITSU SERVICES LTD,1132255,"8,035.61",Connectivity Support (Aug 13 to Jul14)
Ministry of Justice,MoJ HQ,19-May-14,265000-IT & Telecommunications,NZ900-Finance & Corporate Services,FUJITSU SERVICES LTD,1132255,"40,178.05",Connectivity Support (Aug 13 to Jul14)
Ministry of Justice,MoJ HQ,19-May-14,265000-IT & Telecommunications,NZ900-Finance & Corporate Services,FUJITSU SERVICES LTD,1132255,"8,035.61",Connectivity Support (Aug 13 to Jul14)
Ministry of Justice,MoJ HQ,15-May-14,222003-CIS Labour TFM Estates,NZ900-Finance & Corporate Services,G4S INTEGRATED SERVICES (UK) LTD,1131949,"60,099.25",Network Optimisation Programme building works draw down
Ministry of Justice,MoJ HQ,15-May-14,222003-CIS Labour TFM Estates,NZ900-Finance & Corporate Services,G4S INTEGRATED SERVICES (UK) LTD,1131949,"12,019.85",Network Optimisation Programme building works draw down
Ministry of Justice,MoJ HQ,15-May-14,222003-CIS Labour TFM Estates,NZ900-Finance & Corporate Services,G4S INTEGRATED SERVICES (UK) LTD,1131949,"56,657.95",Network Optimisation Programme building works draw down
Ministry of Justice,MoJ HQ,15-May-14,222003-CIS Labour TFM Estates,NZ900-Finance & Corporate Services,G4S INTEGRATED SERVICES (UK) LTD,1131949,"11,331.59",Network Optimisation Programme building works draw down
Ministry of Justice,MoJ HQ,15-May-14,222003-CIS Labour TFM Estates,NZ900-Finance & Corporate Services,G4S INTEGRATED SERVICES (UK) LTD,1131949,0.01,N/A
Ministry of Justice,MoJ HQ,15-May-14,222003-CIS Labour TFM Estates,NZ900-Finance & Corporate Services,G4S INTEGRATED SERVICES (UK) LTD,1131949,"112,133.06",Network Optimisation Programme building works draw down
Ministry of Justice,MoJ HQ,15-May-14,222003-CIS Labour TFM Estates,NZ900-Finance & Corporate Services,G4S INTEGRATED SERVICES (UK) LTD,1131949,"22,426.61",Network Optimisation Programme building works draw down
Ministry of Justice,MoJ HQ,01-May-14,222002-Other Property Costs,NZ900-Finance & Corporate Services,HP ENTERPRISE SERVICES UK LTD,1130857,"33,983.04",Delivery support of HP Core Exit Team resource under contract
Ministry of Justice,MoJ HQ,01-May-14,222002-Other Property Costs,NZ900-Finance & Corporate Services,HP ENTERPRISE SERVICES UK LTD,1130857,"6,796.61",Delivery support of HP Core Exit Team resource under contract
Ministry of Justice,MoJ HQ,01-May-14,222002-Other Property Costs,NZ900-Finance & Corporate Services,HP ENTERPRISE SERVICES UK LTD,1130857,"33,329.52",Delivery support of HP Core Exit Team resource under contract
Ministry of Justice,MoJ HQ,01-May-14,222002-Other Property Costs,NZ900-Finance & Corporate Services,HP ENTERPRISE SERVICES UK LTD,1130857,"6,665.90",Delivery support of HP Core Exit Team resource under contract
Ministry of Justice,MoJ HQ,27-May-14,222002-Other Property Costs,NZ900-Finance & Corporate Services,HP ENTERPRISE SERVICES UK LTD,1132881,"33,329.52",Delivery support of HP Core Exit Team resource under contract
Ministry of Justice,MoJ HQ,27-May-14,222002-Other Property Costs,NZ900-Finance & Corporate Services,HP ENTERPRISE SERVICES UK LTD,1132881,"6,665.90",Delivery support of HP Core Exit Team resource under contract
Ministry of Justice,MoJ HQ,19-May-14,265000-IT & Telecommunications,NZ900-Finance & Corporate Services,HP ENTERPRISE SERVICES UK LTD,1132277,"1,562,379.31","HP NOMS ICT Services End User Computing - Printers, Laptops and Desktops monthly charge"
Ministry of Justice,MoJ HQ,15-May-14,265000-IT & Telecommunications,NZ900-Finance & Corporate Services,HP ENTERPRISE SERVICES UK LTD,1131984,"40,599.75",HP NOMS ICT Services - Network Services
Ministry of Justice,MoJ HQ,15-May-14,265000-IT & Telecommunications,NZ900-Finance & Corporate Services,HP ENTERPRISE SERVICES UK LTD,1131984,"579,957.11",HP NOMS ICT Services - Network Services
Ministry of Justice,MoJ HQ,19-May-14,265000-IT & Telecommunications,NZ900-Finance & Corporate Services,HP ENTERPRISE SERVICES UK LTD,1132277,"182,457.60",HP NOMS ICT Services - Service Integration and Management
Ministry of Justice,MoJ HQ,15-May-14,265000-IT & Telecommunications,NZ900-Finance & Corporate Services,HP ENTERPRISE SERVICES UK LTD,1131984,"399,187.60",HP NOMS ICT Services - Service Integration and Management
Ministry of Justice,MoJ HQ,22-May-14,265000-IT & Telecommunications,NZ900-Finance & Corporate Services,HP ENTERPRISE SERVICES UK LTD,1132553,"188,384.82",HP NOMS ICT Services - Service Integration and Management
Ministry of Justice,MoJ HQ,15-May-14,265000-IT & Telecommunications,NZ900-Finance & Corporate Services,HP ENTERPRISE SERVICES UK LTD,1131984,"660,049.83",HP NOMS ICT Services - Hostings charge 
Ministry of Justice,MoJ HQ,22-May-14,265000-IT & Telecommunications,NZ900-Finance & Corporate Services,HP ENTERPRISE SERVICES UK LTD,1132553,"1,265,349.81",HP NOMS ICT Services - Application Maintenance & Support
Ministry of Justice,MoJ HQ,19-May-14,265000-IT & Telecommunications,NZ900-Finance & Corporate Services,HP ENTERPRISE SERVICES UK LTD,1132277,"712,593.94",HP NOMS ICT Services - Standard Telephony Monthly Line Rental
Ministry of Justice,MoJ HQ,19-May-14,265000-IT & Telecommunications,NZ900-Finance & Corporate Services,HP ENTERPRISE SERVICES UK LTD,1132277,"142,518.79",HP NOMS ICT Services - Standard Telephony Monthly Line Rental
Ministry of Justice,MoJ HQ,19-May-14,265000-IT & Telecommunications,NZ900-Finance & Corporate Services,HP ENTERPRISE SERVICES UK LTD,1132277,"18,711.30",Equal and opposite entry exists to cancel
Ministry of Justice,MoJ HQ,19-May-14,265000-IT & Telecommunications,NZ900-Finance & Corporate Services,HP ENTERPRISE SERVICES UK LTD,1132277,"-18,711.30",Equal and opposite entry exists to cancel
Ministry of Justice,MoJ HQ,19-May-14,265000-IT & Telecommunications,NZ900-Finance & Corporate Services,HP ENTERPRISE SERVICES UK LTD,1132277,"77,963.75",HP NOMS ICT Services - Standard Telephony Monthly Line Rental
Ministry of Justice,MoJ HQ,19-May-14,265000-IT & Telecommunications,NZ900-Finance & Corporate Services,HP ENTERPRISE SERVICES UK LTD,1132277,"15,592.75",HP NOMS ICT Services - Standard Telephony Monthly Line Rental
Ministry of Justice,MoJ HQ,29-May-14,265000-IT & Telecommunications,NZ900-Finance & Corporate Services,HP ENTERPRISE SERVICES UK LTD,1133259,"710,266.38",HP NOMS ICT Services - Standard Telephony Monthly Line Rental
Ministry of Justice,MoJ HQ,29-May-14,265000-IT & Telecommunications,NZ900-Finance & Corporate Services,HP ENTERPRISE SERVICES UK LTD,1133259,"142,053.28",HP NOMS ICT Services - Standard Telephony Monthly Line Rental
Ministry of Justice,MoJ HQ,15-May-14,265000-IT & Telecommunications,NZ900-Finance & Corporate Services,HP ENTERPRISE SERVICES UK LTD,1131984,"73,042.76",HP NOMS ICT Services - General Services
Ministry of Justice,MoJ HQ,15-May-14,265000-IT & Telecommunications,NZ900-Finance & Corporate Services,HP ENTERPRISE SERVICES UK LTD,1131984,"403,068.89",HP NOMS ICT Services - General Services
Ministry of Justice,MoJ HQ,15-May-14,265000-IT & Telecommunications,NZ900-Finance & Corporate Services,HP ENTERPRISE SERVICES UK LTD,1131984,"235,581.61",HP NOMS ICT Monthly Services - Security
Ministry of Justice,MoJ HQ,15-May-14,512000-Intangible GBV - Additions,NZ900-Finance & Corporate Services,HP ENTERPRISE SERVICES UK LTD,1131984,"85,481.20", development and implementation costs for 13/14
Ministry of Justice,MoJ HQ,08-May-14,265000-IT & Telecommunications,NZ900-Finance & Corporate Services,I2N LTD,1131417,"25,000.00",Support and Maintenance 1st June 2013 to 31st May 2015
Ministry of Justice,MoJ HQ,12-May-14,265000-IT & Telecommunications,NZ900-Finance & Corporate Services,INFO-ASSURE LTD,1131646,"21,175.80","IT services including Security Policy,  Security Architecture, Accreditation, Production and Assurance of Risk Management Accreditation Document Set (RMADS), Technical security, architecture, assurance, proposal evaluation, Security Audit and Compliance"
Ministry of Justice,MoJ HQ,12-May-14,265000-IT & Telecommunications,NZ900-Finance & Corporate Services,INFO-ASSURE LTD,1131646,"4,235.16","IT services including Security Policy,  Security Architecture, Accreditation, Production and Assurance of Risk Management Accreditation Document Set (RMADS), Technical security, architecture, assurance, proposal evaluation, Security Audit and Compliance"
Ministry of Justice,MoJ HQ,15-May-14,265000-IT & Telecommunications,NZ900-Finance & Corporate Services,LOCKHEED MARTIN UK LIMITED,1132024,"40,112.05",FITS Transition Assurance Function (FTAF) work for the  Service Integration and Management (SIAM) Tower
Ministry of Justice,MoJ HQ,15-May-14,265000-IT & Telecommunications,NZ900-Finance & Corporate Services,LOCKHEED MARTIN UK LIMITED,1132024,"126,852.14",FITS Transition Assurance Function (FTAF) work for the  Service Integration and Management (SIAM) Tower
Ministry of Justice,MoJ HQ,15-May-14,265000-IT & Telecommunications,NZ900-Finance & Corporate Services,LOCKHEED MARTIN UK LIMITED,1132024,"2,922,037.20",FITS Transition Assurance Function (FTAF) work for the  Service Integration and Management (SIAM) Tower
Ministry of Justice,MoJ HQ,27-May-14,265000-IT & Telecommunications,NZ900-Finance & Corporate Services,LOCKHEED MARTIN UK LIMITED,1132929,"43,086.65",FITS Transition Assurance Function (FTAF) work for the  Service Integration and Management (SIAM) Tower
Ministry of Justice,MoJ HQ,27-May-14,265000-IT & Telecommunications,NZ900-Finance & Corporate Services,LOCKHEED MARTIN UK LIMITED,1132929,"70,173.52",FITS Transition Assurance Function (FTAF) work for the  Service Integration and Management (SIAM) Tower
Ministry of Justice,MoJ HQ,27-May-14,265000-IT & Telecommunications,NZ900-Finance & Corporate Services,LOCKHEED MARTIN UK LIMITED,1132929,"88,116.21",FITS Transition Assurance Function (FTAF) work for the  Service Integration and Management (SIAM) Tower
Ministry of Justice,MoJ HQ,08-May-14,265000-IT & Telecommunications,NZ900-Finance & Corporate Services,LOCKHEED MARTIN UK LIMITED,1131435,"557,266.05","Co-assurance Services To cover people costs for the services provided by Lockheed Martin, beginning on 2nd December 2013, - March 2014"
Ministry of Justice,MoJ HQ,06-May-14,264000-Consultancy,NZ900-Finance & Corporate Services,METHODS CONSULTING,24818,"88,833.33",Monthly managed service for the provision of the specialist architecture and service design capability
Ministry of Justice,MoJ HQ,06-May-14,264000-Consultancy,NZ900-Finance & Corporate Services,METHODS CONSULTING,24818,"17,766.67",Monthly managed service for the provision of the specialist architecture and service design capability
Ministry of Justice,MoJ HQ,06-May-14,264000-Consultancy,NZ900-Finance & Corporate Services,METHODS CONSULTING,24818,"88,833.33",Monthly managed service for the provision of the specialist architecture and service design capability
Ministry of Justice,MoJ HQ,06-May-14,264000-Consultancy,NZ900-Finance & Corporate Services,METHODS CONSULTING,24818,"17,766.67",Monthly managed service for the provision of the specialist architecture and service design capability
Ministry of Justice,MoJ HQ,15-May-14,222003-CIS Labour TFM Estates,NZ900-Finance & Corporate Services,MITIE JUSTICE LTD,1132051,"87,145.31",Network Optimisation Programme building works draw down
Ministry of Justice,MoJ HQ,15-May-14,222003-CIS Labour TFM Estates,NZ900-Finance & Corporate Services,MITIE JUSTICE LTD,1132051,"17,429.06",Network Optimisation Programme building works draw down
Ministry of Justice,MoJ HQ,15-May-14,222003-CIS Labour TFM Estates,NZ900-Finance & Corporate Services,MITIE JUSTICE LTD,1132051,"43,133.52",Network Optimisation Programme building works draw down
Ministry of Justice,MoJ HQ,15-May-14,222003-CIS Labour TFM Estates,NZ900-Finance & Corporate Services,MITIE JUSTICE LTD,1132051,"8,626.70",Network Optimisation Programme building works draw down
Ministry of Justice,MoJ HQ,19-May-14,532000-Tangible GBV - Additions,NZ900-Finance & Corporate Services,MITIE TECHNICAL FACILITIES MANAGEMENT LTD,1132312,"26,372.60",IT infrastructure works
Ministry of Justice,MoJ HQ,19-May-14,532000-Tangible GBV - Additions,NZ900-Finance & Corporate Services,MITIE TECHNICAL FACILITIES MANAGEMENT LTD,1132312,"5,274.52",IT infrastructure works
Ministry of Justice,MoJ HQ,27-May-14,265000-IT & Telecommunications,NZ900-Finance & Corporate Services,REGENCY IT CONSULTING,1133024,0.01,N/A
Ministry of Justice,MoJ HQ,27-May-14,265000-IT & Telecommunications,NZ900-Finance & Corporate Services,REGENCY IT CONSULTING,1133024,"47,265.98",Information assurance services
Ministry of Justice,MoJ HQ,27-May-14,265000-IT & Telecommunications,NZ900-Finance & Corporate Services,REGENCY IT CONSULTING,1133024,"9,453.20",Information assurance services
Ministry of Justice,MoJ HQ,15-May-14,265000-IT & Telecommunications,NZ900-Finance & Corporate Services,SOLIRIUS LTD,1132130,"22,850.00","Production & Assurance of a High Level Solution Architecture (HLSA) document,produce review design pattern,review change request&application perform&diagnose issue"
Ministry of Justice,MoJ HQ,15-May-14,265000-IT & Telecommunications,NZ900-Finance & Corporate Services,SOLIRIUS LTD,1132130,"4,570.00","Production & Assurance of a High Level Solution Architecture (HLSA) document,produce review design pattern,review change request&application perform&diagnose issue"
Ministry of Justice,MoJ HQ,12-May-14,265000-IT & Telecommunications,NZ900-Finance & Corporate Services,SOLIRIUS LTD,1131732,"38,050.00",Application Management Architecture Services
Ministry of Justice,MoJ HQ,12-May-14,265000-IT & Telecommunications,NZ900-Finance & Corporate Services,SOLIRIUS LTD,1131732,"7,610.00",Application Management Architecture Services
Ministry of Justice,MoJ HQ,29-May-14,265000-IT & Telecommunications,NZ900-Finance & Corporate Services,STERIA LTD,1133365,"879,536.17",Offender Management Monthly Charges for Live Services - Desktop
Ministry of Justice,MoJ HQ,29-May-14,265000-IT & Telecommunications,NZ900-Finance & Corporate Services,STERIA LTD,1133365,"944,724.76",Offender Management Monthly Charges for Live Services - Network
Ministry of Justice,MoJ HQ,29-May-14,265000-IT & Telecommunications,NZ900-Finance & Corporate Services,STERIA LTD,1133365,"65,881.82",Offender Management Monthly Charges for Live Services - Service Integration & management
Ministry of Justice,MoJ HQ,29-May-14,265000-IT & Telecommunications,NZ900-Finance & Corporate Services,STERIA LTD,1133365,"877,409.25",Offender Management Monthly Charges for Live Services - Hosting
Ministry of Justice,MoJ HQ,29-May-14,265000-IT & Telecommunications,NZ900-Finance & Corporate Services,STERIA LTD,1133365,"156,307.05",Offender Management Monthly Charges for Live Services - Telephony
Ministry of Justice,MoJ HQ,29-May-14,265000-IT & Telecommunications,NZ900-Finance & Corporate Services,STERIA LTD,1133365,"31,261.41",Offender Management Monthly Charges for Live Services - Telephony
Ministry of Justice,MoJ HQ,29-May-14,265000-IT & Telecommunications,NZ900-Finance & Corporate Services,STERIA LTD,1133365,"160,206.79",Offender Management Monthly Charges for Live Services - General
Ministry of Justice,MoJ HQ,12-May-14,265000-IT & Telecommunications,NZ900-Finance & Corporate Services,STERIA LTD,1131739,"237,941.00",Applications Maintenance and Support contract from 1st August 2013 up to a maximum end date of 31st July 2014
Ministry of Justice,MoJ HQ,01-May-14,512000-Intangible GBV - Additions,NZ900-Finance & Corporate Services,STERIA LTD,1130995,"35,791.84",Software Upgrade
Ministry of Justice,MoJ HQ,01-May-14,512000-Intangible GBV - Additions,NZ900-Finance & Corporate Services,STERIA LTD,1130995,"68,026.70",Software Upgrade
Ministry of Justice,MoJ HQ,29-May-14,512000-Intangible GBV - Additions,NZ900-Finance & Corporate Services,STERIA LTD,1133365,"1,184,260.00",Delivery into production and release note for software 
Ministry of Justice,MoJ HQ,29-May-14,512000-Intangible GBV - Additions,NZ900-Finance & Corporate Services,STERIA LTD,1133365,"2,331,600.00",Deployment with external email addresses changed & Shared National Probation Services storage area
Ministry of Justice,MoJ HQ,15-May-14,265000-IT & Telecommunications,NZ900-Finance & Corporate Services,STERIA LTD,1132135,"21,560.45",Monthly Support Costs
Ministry of Justice,MoJ HQ,15-May-14,265000-IT & Telecommunications,NZ900-Finance & Corporate Services,STERIA LTD,1132135,"4,312.09",Monthly Support Costs
Ministry of Justice,MoJ HQ,01-May-14,265000-IT & Telecommunications,NZ900-Finance & Corporate Services,STERIA LTD,1130995,"21,560.45",Monthly call off support costs
Ministry of Justice,MoJ HQ,01-May-14,265000-IT & Telecommunications,NZ900-Finance & Corporate Services,STERIA LTD,1130995,"4,312.09",Monthly call off support costs
Ministry of Justice,MoJ HQ,22-May-14,265000-IT & Telecommunications,NZ900-Finance & Corporate Services,VODAFONE LTD (RETAIL),1132711,"34,906.50",Vodafone Telephony Services
Ministry of Justice,MoJ HQ,22-May-14,265000-IT & Telecommunications,NZ900-Finance & Corporate Services,VODAFONE LTD (RETAIL),1132711,"6,981.30",Vodafone Telephony Services
Ministry of Justice,MoJ HQ,01-May-14,265000-IT & Telecommunications,OZ501-HRD Feeder,ATOS IT SERVICES UK LTD,1130738,264,IT peripherals/individual ordered software and equipment
Ministry of Justice,MoJ HQ,01-May-14,265000-IT & Telecommunications,OZ501-HRD Feeder,ATOS IT SERVICES UK LTD,1130738,51.56,IT peripherals/individual ordered software and equipment
Ministry of Justice,MoJ HQ,01-May-14,265000-IT & Telecommunications,OZ501-HRD Feeder,ATOS IT SERVICES UK LTD,1130738,46,IT peripherals/individual ordered software and equipment
Ministry of Justice,MoJ HQ,01-May-14,265000-IT & Telecommunications,OZ501-HRD Feeder,ATOS IT SERVICES UK LTD,1130738,25.78,IT peripherals/individual ordered software and equipment
Ministry of Justice,MoJ HQ,01-May-14,265000-IT & Telecommunications,OZ501-HRD Feeder,ATOS IT SERVICES UK LTD,1130738,82.78,IT peripherals/individual ordered software and equipment
Ministry of Justice,MoJ HQ,01-May-14,265000-IT & Telecommunications,OZ501-HRD Feeder,ATOS IT SERVICES UK LTD,1130738,25.23,IT peripherals/individual ordered software and equipment
Ministry of Justice,MoJ HQ,01-May-14,265000-IT & Telecommunications,OZ501-HRD Feeder,ATOS IT SERVICES UK LTD,1130738,165.56,IT peripherals/individual ordered software and equipment
Ministry of Justice,MoJ HQ,01-May-14,265000-IT & Telecommunications,OZ501-HRD Feeder,ATOS IT SERVICES UK LTD,1130738,25.78,IT peripherals/individual ordered software and equipment
Ministry of Justice,MoJ HQ,01-May-14,265000-IT & Telecommunications,OZ501-HRD Feeder,ATOS IT SERVICES UK LTD,1130738,60.34,IT peripherals/individual ordered software and equipment
Ministry of Justice,MoJ HQ,01-May-14,265000-IT & Telecommunications,OZ501-HRD Feeder,ATOS IT SERVICES UK LTD,1130738,8.07,IT peripherals/individual ordered software and equipment
Ministry of Justice,MoJ HQ,01-May-14,265000-IT & Telecommunications,OZ501-HRD Feeder,ATOS IT SERVICES UK LTD,1130738,83.46,IT peripherals/individual ordered software and equipment
Ministry of Justice,MoJ HQ,01-May-14,265000-IT & Telecommunications,OZ501-HRD Feeder,ATOS IT SERVICES UK LTD,1130738,25.78,IT peripherals/individual ordered software and equipment
Ministry of Justice,MoJ HQ,01-May-14,265000-IT & Telecommunications,OZ501-HRD Feeder,ATOS IT SERVICES UK LTD,1130738,82.78,IT peripherals/individual ordered software and equipment
Ministry of Justice,MoJ HQ,01-May-14,265000-IT & Telecommunications,OZ501-HRD Feeder,ATOS IT SERVICES UK LTD,1130738,83.96,IT peripherals/individual ordered software and equipment
Ministry of Justice,MoJ HQ,01-May-14,265000-IT & Telecommunications,OZ501-HRD Feeder,ATOS IT SERVICES UK LTD,1130738,164,IT peripherals/individual ordered software and equipment
Ministry of Justice,MoJ HQ,01-May-14,265000-IT & Telecommunications,OZ501-HRD Feeder,ATOS IT SERVICES UK LTD,1130738,164,IT peripherals/individual ordered software and equipment
Ministry of Justice,MoJ HQ,01-May-14,265000-IT & Telecommunications,OZ501-HRD Feeder,ATOS IT SERVICES UK LTD,1130738,46,IT peripherals/individual ordered software and equipment
Ministry of Justice,MoJ HQ,01-May-14,265000-IT & Telecommunications,OZ501-HRD Feeder,ATOS IT SERVICES UK LTD,1130738,46,IT peripherals/individual ordered software and equipment
Ministry of Justice,MoJ HQ,01-May-14,265000-IT & Telecommunications,OZ501-HRD Feeder,ATOS IT SERVICES UK LTD,1130738,25.78,IT peripherals/individual ordered software and equipment
Ministry of Justice,MoJ HQ,01-May-14,265000-IT & Telecommunications,OZ501-HRD Feeder,ATOS IT SERVICES UK LTD,1130738,8.8,IT peripherals/individual ordered software and equipment
Ministry of Justice,MoJ HQ,01-May-14,265000-IT & Telecommunications,OZ501-HRD Feeder,ATOS IT SERVICES UK LTD,1130738,11.62,IT peripherals/individual ordered software and equipment
Ministry of Justice,MoJ HQ,28-May-14,263000-Other Contracted Out Services,OZ501-HRD Feeder,GOVERNMENT ACTUARY'S DEPARTMENT,4620,"64,864.99",Advice on judicial pensions actuaries for 2013-14
Ministry of Justice,MoJ HQ,28-May-14,263000-Other Contracted Out Services,OZ501-HRD Feeder,GOVERNMENT ACTUARY'S DEPARTMENT,4620,"12,973.00",Advice on judicial pensions actuaries for 2013-14
Ministry of Justice,MoJ HQ,01-May-14,224000-Staff travel and other,OZ501-HRD Feeder,XEXEC LTD,1131034,"-1,579.18",Credit note for Staff Reward Vouchers
Ministry of Justice,MoJ HQ,01-May-14,224000-Staff travel and other,OZ501-HRD Feeder,XEXEC LTD,1131034,"20,510.10",Staff Reward Vouchers
Ministry of Justice,MoJ HQ,01-May-14,224000-Staff travel and other,OZ501-HRD Feeder,XEXEC LTD,1131034,"40,863.32",Staff Reward Vouchers
Ministry of Justice,MoJ HQ,01-May-14,224000-Staff travel and other,OZ501-HRD Feeder,XEXEC LTD,1131034,"8,172.66",Staff Reward Vouchers
Ministry of Justice,MoJ HQ,29-May-14,224000-Staff travel and other,OZ501-HRD Feeder,XEXEC LTD,1133410,"-1,075.20",Credit note for Staff Reward Vouchers
Ministry of Justice,MoJ HQ,29-May-14,224000-Staff travel and other,OZ501-HRD Feeder,XEXEC LTD,1133410,"12,396.50",Staff Reward Vouchers
Ministry of Justice,MoJ HQ,29-May-14,224000-Staff travel and other,OZ501-HRD Feeder,XEXEC LTD,1133410,"27,727.58",Staff Reward Vouchers
Ministry of Justice,MoJ HQ,29-May-14,224000-Staff travel and other,OZ501-HRD Feeder,XEXEC LTD,1133410,"5,545.52",Staff Reward Vouchers
Ministry of Justice,MoJ HQ,01-May-14,265000-IT & Telecommunications,QY200-OU10 Billback,ATOS IT SERVICES UK LTD,1130738,"23,947.00",Provision of Telephony Service - 01/04/2013 to 18/10/2016
Ministry of Justice,MoJ HQ,01-May-14,265000-IT & Telecommunications,QY200-OU10 Billback,ATOS IT SERVICES UK LTD,1130738,"4,789.40",Provision of Telephony Service - 01/04/2013 to 18/10/2016
Ministry of Justice,MoJ HQ,01-May-14,265000-IT & Telecommunications,QY200-OU10 Billback,ATOS IT SERVICES UK LTD,1130738,"44,937.00",Provision of Telephony Service - 01/04/2013 to 18/10/2016
Ministry of Justice,MoJ HQ,01-May-14,265000-IT & Telecommunications,QY200-OU10 Billback,ATOS IT SERVICES UK LTD,1130738,"8,987.40",Provision of Telephony Service - 01/04/2013 to 18/10/2016
Ministry of Justice,MoJ HQ,01-May-14,265000-IT & Telecommunications,QY200-OU10 Billback,ATOS IT SERVICES UK LTD,1130738,"47,289.00",Provision of Telephony Service - 01/04/2013 to 18/10/2016
Ministry of Justice,MoJ HQ,01-May-14,265000-IT & Telecommunications,QY200-OU10 Billback,ATOS IT SERVICES UK LTD,1130738,"9,457.80",Provision of Telephony Service - 01/04/2013 to 18/10/2016
Ministry of Justice,MoJ HQ,01-May-14,265000-IT & Telecommunications,QY200-OU10 Billback,ATOS IT SERVICES UK LTD,1130738,"43,005.00",Provision of Telephony Service - 01/04/2013 to 18/10/2016
Ministry of Justice,MoJ HQ,01-May-14,265000-IT & Telecommunications,QY200-OU10 Billback,ATOS IT SERVICES UK LTD,1130738,"8,601.00",Provision of Telephony Service - 01/04/2013 to 18/10/2016
Ministry of Justice,MoJ HQ,01-May-14,265000-IT & Telecommunications,QY200-OU10 Billback,ATOS IT SERVICES UK LTD,1130738,"49,968.00",Provision of Telephony Service - 01/04/2013 to 18/10/2016
Ministry of Justice,MoJ HQ,01-May-14,265000-IT & Telecommunications,QY200-OU10 Billback,ATOS IT SERVICES UK LTD,1130738,"9,993.60",Provision of Telephony Service - 01/04/2013 to 18/10/2016
Ministry of Justice,MoJ HQ,01-May-14,265000-IT & Telecommunications,QY200-OU10 Billback,ATOS IT SERVICES UK LTD,1130738,"201,929.11",Sustainable Print Service
Ministry of Justice,MoJ HQ,01-May-14,265000-IT & Telecommunications,QY200-OU10 Billback,ATOS IT SERVICES UK LTD,1130738,"325,474.20",Network Optimisation Programme -  Internet Protocol Telephony charges
Ministry of Justice,MoJ HQ,01-May-14,265000-IT & Telecommunications,QY200-OU10 Billback,ATOS IT SERVICES UK LTD,1130738,"65,094.84",Network Optimisation Programme -  Internet Protocol Telephony charges
Ministry of Justice,MoJ HQ,01-May-14,265000-IT & Telecommunications,QY200-OU10 Billback,ATOS IT SERVICES UK LTD,1130738,"284,268.06",Network Optimisation Programme - 'Walk In Take Over' ICT Charges
Ministry of Justice,MoJ HQ,01-May-14,265000-IT & Telecommunications,QY200-OU10 Billback,ATOS IT SERVICES UK LTD,1130738,"56,853.61",Network Optimisation Programme - 'Walk In Take Over' ICT Charges
Ministry of Justice,MoJ HQ,08-May-14,212001-Agency staff,QY200-OU10 Billback,CAPITA BUSINESS SERVICES LTD,1131331,"232,201.35",Agency Staff
Ministry of Justice,MoJ HQ,08-May-14,212001-Agency staff,QY200-OU10 Billback,CAPITA BUSINESS SERVICES LTD,1131331,"46,440.27",Agency Staff
Ministry of Justice,MoJ HQ,08-May-14,212001-Agency staff,QY200-OU10 Billback,CAPITA BUSINESS SERVICES LTD,1131331,"190,086.74",Agency Staff
Ministry of Justice,MoJ HQ,08-May-14,212001-Agency staff,QY200-OU10 Billback,CAPITA BUSINESS SERVICES LTD,1131331,"38,017.35",Agency Staff
Ministry of Justice,MoJ HQ,15-May-14,212001-Agency staff,QY200-OU10 Billback,CAPITA BUSINESS SERVICES LTD,1131869,"296,509.80",Agency Staff
Ministry of Justice,MoJ HQ,15-May-14,212001-Agency staff,QY200-OU10 Billback,CAPITA BUSINESS SERVICES LTD,1131869,"59,301.96",Agency Staff
Ministry of Justice,MoJ HQ,19-May-14,212001-Agency staff,QY200-OU10 Billback,CAPITA BUSINESS SERVICES LTD,1132220,"235,075.11",Agency Staff
Ministry of Justice,MoJ HQ,19-May-14,212001-Agency staff,QY200-OU10 Billback,CAPITA BUSINESS SERVICES LTD,1132220,"47,015.02",Agency Staff
Ministry of Justice,MoJ HQ,08-May-14,222003-CIS Labour TFM Estates,QY200-OU10 Billback,MITIE JUSTICE LTD,1131450,"143,382.42",TFM Soft Services FIXED Costs April 2013 to March 2014 MOJ HQ MITIE SECURITY
Ministry of Justice,MoJ HQ,08-May-14,222003-CIS Labour TFM Estates,QY200-OU10 Billback,MITIE JUSTICE LTD,1131450,"10,335.55",TFM Soft Services FIXED Costs April 2013 to March 2014 MOJ HQ MITIE MANAGEMENT
Ministry of Justice,MoJ HQ,06-May-14,265000-IT & Telecommunications,QY200-OU10 Billback,VODAFONE CORPORATE LTD,1131260,-0.01,MoJ HQ Vodafone Mobiles - Account 602451432 - FY 13-14
Ministry of Justice,MoJ HQ,06-May-14,265000-IT & Telecommunications,QY200-OU10 Billback,VODAFONE CORPORATE LTD,1131260,"30,228.54",MoJ HQ Vodafone Mobiles - Account 602451432 - FY 13-14
Ministry of Justice,MoJ HQ,06-May-14,265000-IT & Telecommunications,QY200-OU10 Billback,VODAFONE CORPORATE LTD,1131260,"6,045.71",MoJ HQ Vodafone Mobiles - Account 602451432 - FY 13-14
Ministry of Justice,MoJ HQ,06-May-14,265000-IT & Telecommunications,QY200-OU10 Billback,VODAFONE CORPORATE LTD,1131260,474.41,MoJ HQ Vodafone Mobiles - Account 602451432 - FY 13-14
Ministry of Justice,MoJ HQ,15-May-14,223000-Other Expenditure,QY300-Fleet Car Mgmt,ALPHABET (GB) LTD,1131804,-0.01,Alphabet - MoJ Lease Vehicle Contract FY 13-14
Ministry of Justice,MoJ HQ,15-May-14,223000-Other Expenditure,QY300-Fleet Car Mgmt,ALPHABET (GB) LTD,1131804,"38,074.53",Alphabet - MoJ Lease Vehicle Contract FY 13-14
Ministry of Justice,MoJ HQ,15-May-14,223000-Other Expenditure,QY300-Fleet Car Mgmt,ALPHABET (GB) LTD,1131804,"7,614.91",Alphabet - MoJ Lease Vehicle Contract FY 13-14
Ministry of Justice,MoJ HQ,01-May-14,265000-IT & Telecommunications,QZ500-Arms Length Bodies (CPG),ATOS IT SERVICES UK LTD,1130738,22.25,IT peripherals/individual ordered software and equipment
Ministry of Justice,MoJ HQ,01-May-14,265000-IT & Telecommunications,QZ500-Arms Length Bodies (CPG),ATOS IT SERVICES UK LTD,1130738,22.25,IT peripherals/individual ordered software and equipment
Ministry of Justice,MoJ HQ,01-May-14,265000-IT & Telecommunications,QZ500-Arms Length Bodies (CPG),ATOS IT SERVICES UK LTD,1130738,5,IT peripherals/individual ordered software and equipment
Ministry of Justice,MoJ HQ,01-May-14,265000-IT & Telecommunications,QZ500-Arms Length Bodies (CPG),ATOS IT SERVICES UK LTD,1130738,265.63,IT peripherals/individual ordered software and equipment
Ministry of Justice,MoJ HQ,01-May-14,265000-IT & Telecommunications,QZ500-Arms Length Bodies (CPG),ATOS IT SERVICES UK LTD,1130738,265.63,IT peripherals/individual ordered software and equipment
Ministry of Justice,MoJ HQ,01-May-14,265000-IT & Telecommunications,QZ500-Arms Length Bodies (CPG),ATOS IT SERVICES UK LTD,1130738,111.45,IT peripherals/individual ordered software and equipment
Ministry of Justice,MoJ HQ,01-May-14,265000-IT & Telecommunications,QZ500-Arms Length Bodies (CPG),ATOS IT SERVICES UK LTD,1130738,66.86,IT peripherals/individual ordered software and equipment
Ministry of Justice,MoJ HQ,01-May-14,265000-IT & Telecommunications,QZ500-Arms Length Bodies (CPG),ATOS IT SERVICES UK LTD,1130738,66.86,IT peripherals/individual ordered software and equipment
Ministry of Justice,MoJ HQ,23-May-14,263000-Other Contracted Out Services,QZ500-Arms Length Bodies (CPG),NATIONAL SAVINGS & INVESTMENTS,4614,"454,083.79",Provision of Court Funds Office service for the 2014/15 Financial Year
Ministry of Justice,MoJ HQ,23-May-14,263000-Other Contracted Out Services,QZ500-Arms Length Bodies (CPG),NATIONAL SAVINGS & INVESTMENTS,4615,"39,632.00",NS&I Service Improvement Costs for 2014/15
Ministry of Justice,MoJ HQ,01-May-14,265000-IT & Telecommunications,QZ600-CPG Other,ATOS IT SERVICES UK LTD,1130738,111.45,Replace faulty or non-faulty out-of-contract BlackBerry devices
Ministry of Justice,MoJ HQ,20-May-14,264000-Consultancy,QZ600-CPG Other,CABINET OFFICE,4603,"77,720.12",Re-imbursement of Cross-Government advisor costs incurred by Cabinet Office Cross-Government Adviser costs - THM et al Civil Service Time
Ministry of Justice,MoJ HQ,20-May-14,264000-Consultancy,QZ600-CPG Other,CABINET OFFICE,4603,"-77,720.12",Re-imbursement of Cross-Government advisor costs incurred by Cabinet Office Cross-Government Adviser costs - THM et al Civil Service Time
Ministry of Justice,MoJ HQ,20-May-14,264000-Consultancy,QZ600-CPG Other,CABINET OFFICE,4603,"105,847.73",Re-imbursement of Cross-Government advisor costs incurred by Cabinet Office Cross-Government Adviser costs - THM et al Civil Service Time
Ministry of Justice,MoJ HQ,20-May-14,264000-Consultancy,QZ600-CPG Other,CABINET OFFICE,4603,"282,752.86",Re-imbursement of Cross-Government advisor costs incurred by Cabinet Office Cross-Government Adviser costs - THM et al Civil Service Time
Ministry of Justice,MoJ HQ,20-May-14,264000-Consultancy,QZ600-CPG Other,CABINET OFFICE,4603,"21,169.55",Re-imbursement of Cross-Government advisor costs incurred by Cabinet Office Cross-Government Adviser costs - THM et al Civil Service Time
Ministry of Justice,MoJ HQ,12-May-14,264000-Consultancy,QZ600-CPG Other,CROWN COMMERCIAL SERVICE,4572,"2,078,824.21",Re-imbursement of PwC and Moore Stephens costs incurred by CCS
Ministry of Justice,MoJ HQ,08-May-14,263000-Other Contracted Out Services,QZ600-CPG Other,POLICE AND CRIME COMMISSIONER FOR GREATER MANCHESTER,1131472,"4,986,000.00",Youth Offender's Institute Reinvestment Project 2014/15 and 2015/16
Ministry of Justice,MoJ HQ,01-May-14,265000-IT & Telecommunications,RB999-JPG - CJRD,ATOS IT SERVICES UK LTD,1130738,164,IT peripherals/individual ordered software and equipment
Ministry of Justice,MoJ HQ,01-May-14,265000-IT & Telecommunications,RB999-JPG - CJRD,ATOS IT SERVICES UK LTD,1130738,25.78,IT peripherals/individual ordered software and equipment
Ministry of Justice,MoJ HQ,01-May-14,265000-IT & Telecommunications,RB999-JPG - CJRD,ATOS IT SERVICES UK LTD,1130738,46,IT peripherals/individual ordered software and equipment
Ministry of Justice,MoJ HQ,01-May-14,265000-IT & Telecommunications,RB999-JPG - CJRD,ATOS IT SERVICES UK LTD,1130738,103.12,IT peripherals/individual ordered software and equipment
Ministry of Justice,MoJ HQ,01-May-14,265000-IT & Telecommunications,RB999-JPG - CJRD,ATOS IT SERVICES UK LTD,1130738,25.78,IT peripherals/individual ordered software and equipment
Ministry of Justice,MoJ HQ,01-May-14,265000-IT & Telecommunications,RB999-JPG - CJRD,ATOS IT SERVICES UK LTD,1130738,25.78,IT peripherals/individual ordered software and equipment
Ministry of Justice,MoJ HQ,01-May-14,265000-IT & Telecommunications,RB999-JPG - CJRD,ATOS IT SERVICES UK LTD,1130738,11.62,IT peripherals/individual ordered software and equipment
Ministry of Justice,MoJ HQ,01-May-14,265000-IT & Telecommunications,RB999-JPG - CJRD,ATOS IT SERVICES UK LTD,1130738,11.62,IT peripherals/individual ordered software and equipment
Ministry of Justice,MoJ HQ,09-May-14,246000-Current Grants,RB999-JPG - CJRD,PCC FOR GWENT#RB31110665,1131541,"99,876.00",Payment to Police & Crime Commissioner of 2014/15 budget
Ministry of Justice,MoJ HQ,27-May-14,246000-Current Grants,RB999-JPG - CJRD,PCC FOR KENT#RB31110669,1132984,"302,123.50",Payment to Police & Crime Commissioner of 2014/15 budget
Ministry of Justice,MoJ HQ,16-May-14,246000-Current Grants,RB999-JPG - CJRD,PCC FOR WEST MIDLANDS#RB31110666,1132191,"477,401.50",Payment to Police & Crime Commissioner of 2014/15 budget
Ministry of Justice,MoJ HQ,01-May-14,265000-IT & Telecommunications,RC999-Criminal Justice Group - OMS,ATOS IT SERVICES UK LTD,1130738,11.62,MS Project Standard 
Ministry of Justice,MoJ HQ,01-May-14,265000-IT & Telecommunications,RC999-Criminal Justice Group - OMS,ATOS IT SERVICES UK LTD,1130738,46,Provision and support of Secure Remote Access (RWSII) Capability
Ministry of Justice,MoJ HQ,01-May-14,265000-IT & Telecommunications,RC999-Criminal Justice Group - OMS,ATOS IT SERVICES UK LTD,1130738,25.78,New IPT Mobility account with voicemail account 11-20 Accounts
Ministry of Justice,MoJ HQ,01-May-14,265000-IT & Telecommunications,RC999-Criminal Justice Group - OMS,ATOS IT SERVICES UK LTD,1130738,25.78,New IPT Mobility account with voicemail account 11-20 Accounts
Ministry of Justice,MoJ HQ,01-May-14,265000-IT & Telecommunications,RC999-Criminal Justice Group - OMS,ATOS IT SERVICES UK LTD,1130738,66.86,Return BlackBerry device (no longer required)
Ministry of Justice,MoJ HQ,12-May-14,223000-Other Expenditure,RC999-Criminal Justice Group - OMS,CALDER CONFERENCES LTD,1131575,"63,039.24",Independent Monitoring Board booking for 2014 Conference at Hinckley Hotel 27-29 March 2014
Ministry of Justice,MoJ HQ,15-May-14,263000-Other Contracted Out Services,RC999-Criminal Justice Group - OMS,ECD (COOKHAM WOOD) LTD,1131920,"971,708.84",Contract to run a secure training centre which forms part of the juvenile secure estate. 
Ministry of Justice,MoJ HQ,15-May-14,263000-Other Contracted Out Services,RC999-Criminal Justice Group - OMS,ECD (ONLEY) LTD,1131921,"1,281,731.62",Contract to run a secure training centre which forms part of the juvenile secure estate. 
Ministry of Justice,MoJ HQ,15-May-14,263000-Other Contracted Out Services,RC999-Criminal Justice Group - OMS,MEDOMSLEY TRAINING SERVICES LTD,1132047,"685,912.80",Contract to run a secure training centre which forms part of the juvenile secure estate. 
Ministry of Justice,MoJ HQ,19-May-14,264000-Consultancy,RC999-Criminal Justice Group - OMS,PINSENT MASONS LLP,1132336,"7,631.00",Legal Consultancy for Transforming Youth Custody programme
Ministry of Justice,MoJ HQ,19-May-14,264000-Consultancy,RC999-Criminal Justice Group - OMS,PINSENT MASONS LLP,1132336,"-7,631.00",Legal Consultancy for Transforming Youth Custody programme
Ministry of Justice,MoJ HQ,19-May-14,264000-Consultancy,RC999-Criminal Justice Group - OMS,PINSENT MASONS LLP,1132336,"38,107.00",Legal Consultancy for Transforming Youth Custody programme
Ministry of Justice,MoJ HQ,19-May-14,264000-Consultancy,RC999-Criminal Justice Group - OMS,PINSENT MASONS LLP,1132336,"7,621.40",Legal Consultancy for Transforming Youth Custody programme
Ministry of Justice,MoJ HQ,19-May-14,264000-Consultancy,RC999-Criminal Justice Group - OMS,PINSENT MASONS LLP,1132336,48,Legal Consultancy for Transforming Youth Custody programme
Ministry of Justice,MoJ HQ,19-May-14,264000-Consultancy,RC999-Criminal Justice Group - OMS,PINSENT MASONS LLP,1132336,"22,728.00",Legal Consultancy for Transforming Youth Custody programme
Ministry of Justice,MoJ HQ,19-May-14,264000-Consultancy,RC999-Criminal Justice Group - OMS,PINSENT MASONS LLP,1132336,"4,545.60",Legal Consultancy for Transforming Youth Custody programme
Ministry of Justice,MoJ HQ,01-May-14,245000-Grants in Aid to NDPBs,RC999-Criminal Justice Group - OMS,YOUTH JUSTICE BOARD FOR ENGLAND & WALES,4552,"8,000,000.00",Grant in Aid to NDPBs
Ministry of Justice,MoJ HQ,01-May-14,265000-IT & Telecommunications,"RD999-CJG - DGs Office, BDSU, Inspectorates & Ombudsman",ATOS IT SERVICES UK LTD,1130738,18.33,Cherry eVolution WHITE STREAM PS/2 and USB
Ministry of Justice,MoJ HQ,01-May-14,265000-IT & Telecommunications,"RD999-CJG - DGs Office, BDSU, Inspectorates & Ombudsman",ATOS IT SERVICES UK LTD,1130738,168.02,IT peripherals/individual ordered software and equipment
Ministry of Justice,MoJ HQ,01-May-14,265000-IT & Telecommunications,"RD999-CJG - DGs Office, BDSU, Inspectorates & Ombudsman",ATOS IT SERVICES UK LTD,1130738,31.31,IT peripherals/individual ordered software and equipment
Ministry of Justice,MoJ HQ,01-May-14,265000-IT & Telecommunications,"RD999-CJG - DGs Office, BDSU, Inspectorates & Ombudsman",ATOS IT SERVICES UK LTD,1130738,56.92,HP 230W Smart AC Adapter
Ministry of Justice,MoJ HQ,01-May-14,265000-IT & Telecommunications,"RD999-CJG - DGs Office, BDSU, Inspectorates & Ombudsman",ATOS IT SERVICES UK LTD,1130738,46,Provision and support of Secure Remote Access (RWSII) Capability
Ministry of Justice,MoJ HQ,01-May-14,265000-IT & Telecommunications,"RD999-CJG - DGs Office, BDSU, Inspectorates & Ombudsman",ATOS IT SERVICES UK LTD,1130738,46,Provision and support of Secure Remote Access (RWSII) Capability
Ministry of Justice,MoJ HQ,01-May-14,265000-IT & Telecommunications,RG999-CFLAP Accumulator,ATOS IT SERVICES UK LTD,1130738,25.78,IT peripherals/individual ordered software and equipment
Ministry of Justice,MoJ HQ,01-May-14,265000-IT & Telecommunications,RG999-CFLAP Accumulator,ATOS IT SERVICES UK LTD,1130738,25.78,IT peripherals/individual ordered software and equipment
Ministry of Justice,MoJ HQ,01-May-14,265000-IT & Telecommunications,RG999-CFLAP Accumulator,ATOS IT SERVICES UK LTD,1130738,25.78,IT peripherals/individual ordered software and equipment
Ministry of Justice,MoJ HQ,01-May-14,265000-IT & Telecommunications,RG999-CFLAP Accumulator,ATOS IT SERVICES UK LTD,1130738,11.62,IT peripherals/individual ordered software and equipment
Ministry of Justice,MoJ HQ,29-May-14,246000-Current Grants,RG999-CFLAP Accumulator,PERSONAL SUPPORT UNIT#RG70212209,1133317,"200,000.00",Grant in aid payment to the Personal Support Unit
Ministry of Justice,MoJ HQ,29-May-14,246000-Current Grants,RG999-CFLAP Accumulator,RCJ ADVICE BUREAU#RG70212210,1133318,"90,000.00",Grant in aid payment to the Royal Courts of Justice Advice Bureau
Ministry of Justice,MoJ HQ,01-May-14,265000-IT & Telecommunications,RJ999-JPG - International,ATOS IT SERVICES UK LTD,1130738,25.78,IT peripherals/individual ordered software and equipment
Ministry of Justice,MoJ HQ,01-May-14,265000-IT & Telecommunications,RJ999-JPG - International,ATOS IT SERVICES UK LTD,1130738,25.78,IT peripherals/individual ordered software and equipment
Ministry of Justice,MoJ HQ,01-May-14,265000-IT & Telecommunications,RJ999-JPG - International,ATOS IT SERVICES UK LTD,1130738,82.78,IT peripherals/individual ordered software and equipment
Ministry of Justice,MoJ HQ,01-May-14,265000-IT & Telecommunications,RJ999-JPG - International,ATOS IT SERVICES UK LTD,1130738,50.9,IT peripherals/individual ordered software and equipment
Ministry of Justice,MoJ HQ,22-May-14,246000-Current Grants,RJ999-JPG - International,THE JOHN SMITH MEMORIAL TRUST,1132692,"100,000.00",Grant in aid payment to the John Smith Memorial Trust
Ministry of Justice,MoJ HQ,01-May-14,265000-IT & Telecommunications,RZ500-Arms Length Bodies (JPG),ATOS IT SERVICES UK LTD,1130738,25.78,IT peripherals/individual ordered software and equipment
Ministry of Justice,MoJ HQ,01-May-14,265000-IT & Telecommunications,RZ500-Arms Length Bodies (JPG),ATOS IT SERVICES UK LTD,1130738,46.22,IT peripherals/individual ordered software and equipment
Ministry of Justice,MoJ HQ,01-May-14,265000-IT & Telecommunications,RZ500-Arms Length Bodies (JPG),ATOS IT SERVICES UK LTD,1130738,78.26,IT peripherals/individual ordered software and equipment
Ministry of Justice,MoJ HQ,23-May-14,610400-Debtors <1 year - Prepayments & Accrued Income,WW000-Balance Sheet,CITY OF WESTMINSTER,1132734,"85,842.00",Balance Sheet - Rates Prepayment Control
Ministry of Justice,MoJ HQ,23-May-14,610400-Debtors <1 year - Prepayments & Accrued Income,WW000-Balance Sheet,CITY OF WESTMINSTER,1132734,"150,600.00",Balance Sheet - Rates Prepayment Control
Ministry of Justice,MoJ HQ,23-May-14,610400-Debtors <1 year - Prepayments & Accrued Income,WW000-Balance Sheet,CITY OF WESTMINSTER,1132734,"598,384.00",Balance Sheet - Rates Prepayment Control
Ministry of Justice,MoJ HQ,23-May-14,610400-Debtors <1 year - Prepayments & Accrued Income,WW000-Balance Sheet,CITY OF WESTMINSTER,1132734,"51,204.00",Balance Sheet - Rates Prepayment Control
Ministry of Justice,MoJ HQ,23-May-14,610400-Debtors <1 year - Prepayments & Accrued Income,WW000-Balance Sheet,CITY OF WESTMINSTER,1132734,"51,204.00",Balance Sheet - Rates Prepayment Control
Ministry of Justice,MoJ HQ,23-May-14,610400-Debtors <1 year - Prepayments & Accrued Income,WW000-Balance Sheet,CITY OF WESTMINSTER,1132734,"51,204.00",Balance Sheet - Rates Prepayment Control
Ministry of Justice,MoJ HQ,23-May-14,610400-Debtors <1 year - Prepayments & Accrued Income,WW000-Balance Sheet,CITY OF WESTMINSTER,1132734,"51,204.00",Balance Sheet - Rates Prepayment Control
Ministry of Justice,MoJ HQ,23-May-14,610400-Debtors <1 year - Prepayments & Accrued Income,WW000-Balance Sheet,CITY OF WESTMINSTER,1132734,"51,204.00",Balance Sheet - Rates Prepayment Control
Ministry of Justice,MoJ HQ,23-May-14,610400-Debtors <1 year - Prepayments & Accrued Income,WW000-Balance Sheet,CITY OF WESTMINSTER,1132734,"51,204.00",Balance Sheet - Rates Prepayment Control
Ministry of Justice,MoJ HQ,23-May-14,610400-Debtors <1 year - Prepayments & Accrued Income,WW000-Balance Sheet,CITY OF WESTMINSTER,1132734,"51,152.80",Balance Sheet - Rates Prepayment Control
Ministry of Justice,MoJ HQ,23-May-14,610400-Debtors <1 year - Prepayments & Accrued Income,WW000-Balance Sheet,CITY OF WESTMINSTER,1132734,"51,204.00",Balance Sheet - Rates Prepayment Control
